Workbook

Sheet 表紙
W1: 記載方法
A2: 別記様式第４号（第９第１項関係）
V3: 年 月 日
A5: ○○年度農林水産物・食品輸出促進対策整備交付金 （食品産業の輸出向けHACCP等対応施設整備緊急対策事業） 事業実施計画書
R10: 印
B11: 都道府県知事 | H11: 殿
N13: 事業実施主体名 代表者氏名
B17: 農林水産物・食品輸出促進緊急対策事業のうち食品産業の輸出向けHACCP等対応施設整備緊急対策事業交付等要綱第９第１項の規定に基づき、関係書類を添えて事業実施計画を提出する。

Sheet １実施主体等の概要（その１）
B1: １ 事業実施主体等の概要及び添付書類
B2: （１）事業実施主体の概要
C3: （ふりがな） | K3: （ | AE3: ） | AF3: 代表者 | AG3: 役職名
C4: 事業実施主体の名称 | AG4: 氏名
C5: 主たる事務所の所在地 | K5: （ | L5: 〒 | P5: － | U5: ） | AF5: 事業 担当者 | AG5: 役職名
AG6: 氏名
AF7: 連絡先 | AG7: 電話番号
AG8: Ｅ-mail
C9: 事業実施場所（住所） | AF9: 業種
AF10: 設立年月日 | AJ10: 年 月 日
AF11: 資本金 | AP11: 千円
AF12: 直近決算の 年間売上高 | AP12: 千円
C13: HPアドレス | AF13: 常時使用する従業員数 | AP13: 名
B14: （２）HACCPチーム編成状況
C15: 担当部門 | O15: 責任者及び 担当者の別 | S15: 氏 名 | AB15: 担当部門における役割、HACCP研修受講状況等
C16: 【記載注意】 （1）HACCPチームメンバーのうち、必ず１名はHACCP研修受講者を含め、該当者の「受講済み研修名」及び「研修の受講年月日」を明記してください。 また、「受講したことがわかる書類」も添付してください。修了証書等は必須でありませんが、実際に研修を受けたことがわかる証拠書類（申込時のメール、具体的な研修会名やその日時等を含む報告書等）を添付してください。(イベント等のセミナーで行われるような数時間程度でダイジェスト紹介をするものは該当しません。) （2）HACCPチームは、募集期間締切時点までに編成されていることが望ましい（案段階の編成の記載は必要）です。補助金の交付申請までには正式に編成してください。
B21: 注１ | D21: 「業種」の欄には、事業内容又は製造品目がわかるものを記入する（酒類メーカー、菓子メーカー、飲料メーカー、物流企業等）
B22: 2 | D22: 輸出品目の製品製造等に係る各担当部門を記載するとともに、担当部門の責任者や担当者、氏名、役割を記載すること。 また、HACCPチームメンバーのうち、必ず１名はHACCP研修受講済みの者を含めることとし、該当者の受講済み研修及び研修の受講年月日を明記すること。 なお、HACCP研修の受講状況は、事業実施主体の従業員等、組織内の人員における受講状況を記載すること（外部専門家は研修受講者に含めないこと）。
B24: （３）他事業の実施状況 （既に採択が決定及び申請中、現在実施している事業、または過去に国からの補助を受け実施した事業があれば、採択（予定）年度、事業名及び事業概要を記入ください。）
C25: 採択（予定）年度 | K25: 事業名 | V25: 事業概要
C26: 【記載注意】 ・類似事業（輸出先国の市場変化に対応した食品等の製造施設等整備の緊急支援事業、食品産業の輸出向けHACCP等対応施設整備対策事業、HACCP対応のための施設改修等支援事業）を記載の場合は事業概要に、認証取得日と認証取得品目がわかるように記載ください。 ・二重補助を防ぐための欄です。本事業で活用しようとする施設・設備に関するものは幅広に記載ください。 ・過去に補助事業等を利用して整備した機械・施設をさらに整備する場合は、処分制限処理期間が終わっているかどうか、また財産処分届や増改築届の手続き等について、その事業の要領を確認し適切な処理を行ってください。
B32: （４）直近３年の経営状況 | K32: 第 | N32: 期 | P32: 第 | S32: 期 | U32: 第 | X32: 期 | Y32: 備考
J33: 年 月 日～ | O33: 年 月 日～ | T33: 年 月 日～
J34: 年 月 日 | O34: 年 月 日 | T34: 年 月 日 | AK34: ※損益計算書により確認 経常損益＝営業利益＋ 業外収益－営業外費用
B35: 経常損益 | M35: 千円 | R35: 千円 | W35: 千円 | Y35: 事業実施主体の財務状況が、安定した事業運営が可能であると認められること（直近３年の経常損益が３年連続赤字であり、又は、直近の決算において債務超過となっている事業者でないこと。）が必要です。なお、これらの条件に当てはまらない場合は、書類提出先の都道府県にご相談ください。
B36: 純資産額 （資産と負債の差額） | M36: 千円 | R36: 千円 | W36: 千円 | AK36: ※貸借対照表により確認
D37: うち利益剰余金 | M37: 千円 | R37: 千円 | W37: 千円
B39: （５）個人情報の取扱い１
B40: □ | D40: 本事業の実施に当たり、本申請に係る個人情報等について、関係自治体に提供することに同意します。 （同意いただけない場合は、取組内容等が確認ができないため、本事業の実施ができない場合があります。）
B43: （６）個人情報の取扱い２（任意）
B44: 同意します | G44: □ | I44: 本事業の実施に当たり、農林水産物及び食品の輸出の促進に関する法律（令和元年法律第57号）の第13条に則り、事業者名、所在地、事業規模等について、事業実施主体の規模及び性質、採択の有無等に関わらず、株式会社日本政策金融公庫に提供することに同意します。 ※同意いただけなかった場合でも、事業の採択等に影響はございません。 ※農林水産物及び食品の輸出の促進に関する法律（令和元年法律第57号）第一三条 国、都道府県等、株式会社日本政策金融公庫は、農林水産物及び食品の輸出の促進の総合的かつ 一体的な推進を図るため、相互に連携を図りながら協力するよう努めなければならない。
B46: 同意しません | G46: □

Sheet 1事業実施主体等の概要（その２）
A2: （７） 連携する事業者の概要
B3: ※ 押印のある文書は「規約」、押印のない文書は「覚書」にチェックする。
A5: 連携事業者 | E5: 活動拠点：住所・所在地 （都道府県市町村名） | H5: 業種 | I5: 代表者名 （役職） | M5: 連携や取引の内容・役割 | X5: 連携規約等 の確認
A7: ① | X7: □規約 □覚書
A8: ② | X8: □規約 □覚書
A9: ③ | X9: □規約 □覚書
A10: ④ | X10: □規約 □覚書
A11: ⑤ | X11: □規約 □覚書
A12: ⑥ | X12: □規約 □覚書
B14: 注1 | C14: 「業種」の欄には、事業内容又は製造品目がわかるものを記入する（酒類メーカー、菓子メーカー、飲料メーカー、物流企業、商社、卸等）
B15: 2 | C15: 連携する者について全て記載し、欄が足りない場合には欄を追加して記載する。
B16: 3 | C16: 連携や取引内容を定めた文書等を添付する。

Sheet ２事業の概要等
B1: ２ 事業の概要
B2: （１）輸出に向けた現在の取組内容及び施設等整備を行う理由・背景
B3: １． 輸出に向けた現在の取組内容 ※輸出事業計画に記載すること。 ※輸出に向けた取組内容がわかる既存資料（パンフレット等）があれば、添付すること。
B5: ２． 本事業を活用して施設等整備を行う理由・背景 【記載のポイント】 なぜ今回この事業を要望するのかについて記載。 【記載要素】以下の項目は必ず記載してください。 ・現状の施設（全体）がどのようなもの（生産量、生産金額、施設認定や認証取得状況等）で、今回どのような施設を整備しようとしているのか。 ・なぜ今回の施設・機器整備が必要なのか。整備する施設・機器整備は現状の施設・機器とどのように違い、整備することでどうなるのか。 ・認定や認証取得、施設や機械整備をターゲット国から要望されているのか。また、施設や機器整備については品質・衛生管理専門家等からの指摘があるのか。 (書面があれば別添で添付）別添は番号を付すこと。 ・整備する施設・機器の規模・処理能力等の必要性の根拠を記載（どこからどのようなニーズがあるのか、輸出量に対して処理能力は適正なのか、認証を取得するために今回の整備が必要な理由等）を記載。 ・現状の施設での全生産量に対する国内向けと輸出向けの割合はどのようになっているか。今後輸出の割合をどのように増やしていくのか等を記載。
B7: （２）輸出に向けたHACCP等の認定・認証取得状況
B8: １． すでに取得済みの認定・認証 （１）取得済みの認定・認証の種類（品目） （例）対米HACCP（品目：ブリのフィレ、タイのフィレ） 記載例 : 〇〇工場にてFSSC22000（品目:〇〇、△△）取得 （２）（１）の認定・認証の取得時期 ※複数の認定・認証（品目）を取得済みの場合は、それぞれの認定・認証ごとに記載すること 品目〇〇 : 2006年10月取得 品目△△ : 2007年3月取得 ・取得していることが分かる資料（認定証等）を添付してください。 ・品目名は認定証等の記載に合わせてください。
B10: ２． 本事業の活用により取得を予定している認定・認証 （１）取得予定の認定・認証の種類（品目） （例）対EU・HACCP（品目：ブリのフィレ、タイのフィレ） ※品目名は認定・認証申請時のものに合わせること。 記載例 : 〇〇工場にてFSSC22000（品目:〇〇、△△）取得予定 （２）（１）の認定・認証の取得予定時期 ※複数の認定・認証（品目）を取得予定の場合は、それぞれの認定・認証ごとに記載すること 品目〇〇 : 20○○年８月申請予定、20○○年10月取得予定 品目△△ : 20○○年１月申請予定、20○○年３月取得予定 【記載注意】 ・品質・衛生管理専門家の意見に基づき記載すること。なお、取得予定時期に関する専門家判断は添付書類(2)③（専門家の指導内容）に必ず含めること。
B12: ３． 取得予定の認定・認証に関する品質・衛生管理専門家等を活用した調査・検討 （１）専門家等による指導状況 ①専門家等の氏名・所属等 記載例 : 氏名〇〇 株式会社〇〇 経営コンサルタント 中小企業診断士 ②専門家等による直近の指導日 記載例 : 令和〇年〇月〇日 ③専門家等による指導等の内容 取得予定の認定・認証に対する指導の記録を記載して下さい。 ※本事業により施設等の改修を行う根拠となる指導等の内容については、必ず記載すること。 (専門家からの指導の根拠となる報告書、メール等を添付していただいても結構です。) （例）汚染区と清潔区との間に間仕切りを設置して衛生環境を向上させる必要がある。 ④指導内容に対する対応状況
B14: （３）輸出拡大に向けた取組
B15: ※輸出事業計画「２ 輸出にあたってのニーズの把握状況」、「３ 課題と取り組み内容」、 「４ 現在の商流の状況と今後の商流の展開」及び「６ 輸出する農林水産物・食品の現状及び目標」 に下記事項を記載した場合は、省略することができる。
B16: １． 輸出先となるターゲット国 「（輸出事業計画に記載）」と記載してください。
B18: ２． 本事業の活用により輸出に取り組む品目（製品）に関するターゲット国での市場及び規制に関する分析 ※ターゲット国でのマーケティングや市場及び規制に関する分析に基づく輸出ニーズについて記載すること 「（輸出事業計画に記載）」と記載してください。
B20: ３． 本事業の活用により輸出に取り組む品目（製品）の輸出拡大に向けたこれまでの取組状況 ①ターゲット国への輸出に向けた商談会等への参加状況 ②ターゲット国への輸出に向けた国内商社等との相談状況 ③ターゲット国の輸入業者・企業との相談状況 「（輸出事業計画に記載）」と記載してください。

Sheet ２ 別添（直近３年のうち年間輸出額が最大となる年度の内訳）
A1: ２ 別添（直近３年のうち年間輸出額が最大となる年度の輸出額内訳）
B3: 実施要綱別表２の配分基準表に定める評価項目のうち、評価項目①に基づく加算を行う場合は、 加算根拠として直近３年のうち年間輸出額が最大となる年度における品目別の輸出額及び輸出数量 の国別内訳を記載すること。
C5: (例)20〇〇年(〇月－〇月)実績 | F5: 単位：千円、トン
C6: 最大輸出額 (〇年〇月期)
C7: 輸出品目 | D7: 輸出先国 | E7: 輸出額 | F7: 輸出数量
C8: 〇〇 | D8: ●● | E8: 50,000 | F8: 55.0
D9: ▲▲ | E9: 20,000 | F9: 25.0
D10: ×× | E10: 10,000 | F10: 15.0
D13: 品目合計 | E13: =SUM(E8:E12) -> 80,000 | F13: =SUM(F8:F12) -> 95.0
C14: △△ | D14: ●● | E14: 10,000 | F14: 15.0
D19: 品目合計 | E19: =SUM(E14:E18) -> 10,000 | F19: =SUM(F14:F18) -> 15.0
D20: 全体合計 | E20: =SUM(E13,E19) -> 90,000 | F20: =SUM(F13,F19) -> 110.0
C21: （注）：複数の輸出品目や輸出先国がある場合は、適宜枠を追加すること。

Sheet ３機械・施設の整備計画等
B1: ３ 経費の内訳等（交付等要綱第６関係）
B2: （１）施設等整備事業（交付等要綱第６第２項第１号関係） | AI2: 単位：円
B3: ①機械・機器 | C3: № | D3: 施設等区分 | O3: 設置 台数 | P3: （参考）交付対象外経費を含めた施設等整備に要する経費 | R3: 施設等整備 事業費 （交付対象事業費） （A＝B＋C＋D） | S3: 施設等整備事業費の負担区分 | AE3: 貸付けの詳細 | AI3: 竣工予定 年月日
E4: 機械・機器名 | H4: 用途 | J4: 処理能力 | L4: 規格・形式 | S4: 自己資金（B） | W4: 地方公共団体等による助成金（C） | AC4: 交付金（D） | AE4: 貸付機関名 (株)日本政策金融公庫等 | AG4: 貸付 時期 | AH4: 償還 年数
U5: うち貸付金 | W5: 都道府県 | Y5: 市町村 | AA5: その他
C7: 1 | E7: 高温高圧調理殺菌装置 | H7: 総菜品 | J7: 400パック/h | L7: ＲＣＳ-100/20ＳＰ ＸＧ | O7: 1 | P7: 33,000,000 | R7: 30,001,000 | S7: =R7-AC7 -> 15,000,500 | U7: 1,501,000 | W7: 0 | Y7: 0 | AA7: 0 | AC7: 15,000,500 | AE7: 【記載注意】 交付対象事業費に充てるために金融機関等から交付対象事業の全体事業費の10％以上の貸し付けを受けること。 （全体事業費とは、施設整備事業と効果促進事業の事業費の合計額）
C8: 2 | E8: 半割り機 | H8: 原料カット | J8: 360/h | O8: 1 | P8: 3,300,000 | R8: 3,000,550 | S8: =R8-AC8 -> 1,500,300 | U8: 151,000 | W8: 0 | Y8: 0 | AA8: 0 | AC8: 1,500,250
C9: 3 | E9: 乱切り機 | H9: 原料カット | J9: 500kg/h | O9: 1 | P9: 5,500,000 | R9: 5,000,500 | S9: =R9-AC9 -> 2,500,250 | U9: 251,000 | W9: 0 | Y9: 0 | AA9: 0 | AC9: 2,500,250
C13: 合計 | P13: =SUM(P7:Q12) -> 41,800,000 | R13: =SUM(R7:R12) -> 38,002,050 | S13: =SUM(S7:T9) -> 19,001,050 | U13: =SUM(U7:V12) -> 1,903,000 | W13: 0 | Y13: 0 | AA13: 0 | AC13: =SUM(AC7:AD12) -> 19,001,000
B14: ②建物（設備） | C14: № | D14: 施設等区分 | P14: （参考）交付対象外経費を含めた施設等整備に要する経費 | R14: 施設等整備 事業費 （交付対象事業費） （A＝B＋C＋D） | S14: 施設等整備事業費の負担区分 | AE14: 貸付けの詳細 | AI14: 竣工予定 年月日
E15: 建物（設備）名 | J15: 種類名 | L15: 構造・規格 | S15: 自己資金（B） | W15: 地方公共団体等による助成金（C） | AC15: 交付金（D） | AE15: 貸付機関名 (株)日本政策金融公庫等 | AG15: 貸付 時期 | AH15: 償還 年数
U16: うち貸付金 | W16: 都道府県 | Y16: 市町村 | AA16: その他
C18: 4 | E18: 冷凍冷蔵施設 | J18: 建物 | L18: 本体改修工事 | P18: 150,000,000 | R18: 60,002,000 | S18: =R18-AC18 -> 30,001,000 | U18: 3,001,000 | W18: 0 | Y18: 0 | AA18: 0 | AC18: =R18/2 -> 30,001,000 | AE18: (株)〇〇銀行 | AG18: 〇年〇月 | AH18: 15年 | AI18: 〇年〇月〇日
C19: 5 | E19: 冷凍冷蔵施設 | J19: 建物 | L19: 設備改修工事 | P19: 100,000,000 | R19: 60,000,550 | S19: =R19-AC19 -> 30,000,550 | U19: 3,001,000 | W19: 0 | Y19: 0 | AA19: 0 | AC19: 30,000,000 | AE19: (株)〇〇銀行 | AG19: 〇年〇月 | AH19: 15年 | AI19: 〇年〇月〇日
C20: 6 | E20: 冷凍冷蔵施設 | J20: 建物 | L20: 共通費 | P20: 100,000,000 | R20: 60,000,500 | S20: =R20-AC20 -> 30,000,500 | U20: 3,001,000 | W20: 0 | Y20: 0 | AA20: 0 | AC20: 30,000,000 | AE20: (株)〇〇銀行 | AG20: 〇年〇月 | AH20: 15年 | AI20: 〇年〇月〇日
C24: 合計 | P24: =SUM(P18:Q23) -> 350,000,000 | R24: =SUM(R18:R23) -> 180,003,050 | S24: =SUM(S18:T23) -> 90,002,050 | U24: =SUM(U18:V23) -> 9,003,000 | W24: 0 | Y24: 0 | AA24: 0 | AC24: =SUM(AC18:AD23) -> 90,001,000
B25: 施設等整備事業費の合計 | P25: =+P13+P24 -> 391,800,000 | R25: =+R13+R24 -> 218,005,100 | S25: =S13+S24 -> 109,003,100 | U25: =+U13+U24 -> 10,906,000 | W25: 0 | Y25: 0 | AA25: 0 | AC25: =+AC13+AC24 -> 109,002,000
B26: 注１ | C26: 「用途」の欄には、「○○のカット」、「○○の冷蔵」、「○○の梱包」等当該機械が備えている機能を記入する。
B27: 2 | C27: 「建物（設備）名」には、「○○食品加工施設」、「○○保管施設」等を、「種類名」の欄には、「建物」、「電気設備」、「空調設備」等を記入する。
B28: 3 | C28: 「（参考）交付対象外経費を含めた施設等整備に要する経費」には施設等整備事業を活用した施設等の整備費に加えて、交付対象外経費にて施設等を整備する場合、その合計額を記入する。
C29: なお、施設等整備事業を活用した機械・機器の整備費のみの場合は、記入の省略も可。
B30: 4 | C30: 「施設等整備事業費の合計」には「①機械・機器」及び「②建物（設備）」の「（参考）交付対象外経費を含めた施設等整備に要する経費」、「施設等整備事業費」、「施設等整備事業費の負担区分」の合計を記入する。
B31: 5 | C31: 複数の機械・建物を導入する場合は、欄を追加し記入する。
B33: ３ 経費の内訳等（交付等要綱第６関係） | N33: 新設・増築の場合は、掛かり増しチェック表を作成し転記してください。
B34: （１）施設等整備事業（交付等要綱第６第２項第１号関係） | AI34: 単位：円
B35: ①機械・機器 | C35: № | D35: 施設等区分 | O35: 設置 台数 | P35: （参考）交付対象外経費を含めた施設等整備に要する経費 | R35: 施設等整備 事業費 （交付対象事業費） （A＝B＋C＋D） | S35: 施設等整備事業費の負担区分 | AE35: 貸付けの詳細 | AI35: 竣工予定 年月日
E36: 機械・機器名 | H36: 用途 | J36: 処理能力 | L36: 規格・形式 | S36: 自己資金（B） | W36: 地方公共団体等による助成金（C） | AC36: 交付金（D） | AE36: 貸付機関名 (株)日本政策金融公庫等 | AG36: 貸付 時期 | AH36: 償還 年数
U37: うち貸付金 | W37: 都道府県 | Y37: 市町村 | AA37: その他
C45: 合計
B46: ②建物（設備） | C46: № | D46: 施設等区分 | P46: （参考）交付対象外経費を含めた施設等整備に要する経費 | R46: 施設等整備 事業費 （交付対象事業費） （A＝B＋C＋D） | S46: 施設等整備事業費の負担区分 | AE46: 貸付けの詳細 | AI46: 竣工予定 年月日
E47: 建物（設備）名 | J47: 種類名 | L47: 構造・規格 | S47: 自己資金（B） | W47: 地方公共団体等による助成金（C） | AC47: 交付金（D） | AE47: 貸付機関名 (株)日本政策金融公庫等 | AG47: 貸付 時期 | AH47: 償還 年数
U48: うち貸付金 | W48: 都道府県 | Y48: 市町村 | AA48: その他
C50: 1 | E50: 水産加工施設 | J50: 建物 | L50: ○○○ | P50: 240,000,000 | R50: 62,750,000 | S50: =ROUNDUP(R50/2,-3) -> 31,375,000 | U50: =S50 -> 31,375,000 | W50: 0 | Y50: 0 | AA50: 0 | AC50: =R50-S50 -> 31,375,000 | AE50: （株）○○銀行 | AG50: 〇年〇月 | AH50: 15 | AI50: 〇年〇月〇日
C51: 2 | E51: 水産加工施設 | J51: 電気設備 | L51: ○○○ | P51: 47,000,000 | R51: 36,660,000 | S51: =ROUNDUP(R51/2,-3) -> 18,330,000 | U51: 18,330,000 | W51: 0 | Y51: 0 | AA51: 0 | AC51: =R51-S51 -> 18,330,000 | AE51: （株）○○銀行 | AG51: 〇年〇月 | AH51: 15 | AI51: 〇年〇月〇日
C52: 3 | E52: 水産加工施設 | J52: 機械設備 | L52: ○○○ | P52: 76,000,000 | R52: 59,280,000 | S52: 29,640,000 | U52: 29,640,000 | W52: 0 | Y52: 0 | AA52: 0 | AC52: 29,640,000 | AE52: （株）○○銀行 | AG52: 〇年〇月 | AH52: 15 | AI52: 〇年〇月〇日
C53: 4 | E53: 水産加工施設 | J53: 空調設備 | L53: ○○○ | P53: 55,000,000 | R53: 42,900,000 | S53: 21,450,000 | U53: 21,450,000 | W53: 0 | Y53: 0 | AA53: 0 | AC53: 21,450,000 | AE53: （株）○○銀行 | AG53: 〇年〇月 | AH53: 15 | AI53: 〇年〇月〇日
C54: 5 | E54: 水産加工施設 | J54: 給排水設備 | P54: 45,000,000 | R54: 35,100,000 | S54: 17,550,000 | U54: 17,550,000 | W54: 0 | Y54: 0 | AA54: 0 | AC54: =R54-S54 -> 17,550,000 | AE54: （株）○○銀行 | AG54: 〇年〇月 | AH54: 15 | AI54: 〇年〇月〇日
C55: 6 | E55: 水産加工施設 | J55: 共通費 | P55: 17,500,000 | R55: 9,009,000 | S55: =ROUNDUP(R55/2,-3) -> 4,505,000 | U55: 4,505,000 | W55: 0 | Y55: 0 | AA55: 0 | AC55: =R55-S55 -> 4,504,000 | AE55: （株）○○銀行 | AG55: 〇年〇月 | AH55: 15 | AI55: 〇年〇月〇日
C57: 7 | E57: 水産加工施設 | J57: 撤去・処分費 | P57: 37,000,000 | S57: 0 | U57: 0 | AC57: 0
C59: 合計 | P59: =SUM(P50:Q56) -> 480,500,000 | R59: =SUM(R50:R58) -> 245,699,000 | S59: =SUM(S50:T58) -> 122,850,000 | U59: =SUM(U50:V58) -> 122,850,000 | W59: =SUM(W50:X56) -> 0 | Y59: =SUM(Y50:Z56) -> 0 | AA59: =SUM(AA50:AB56) -> 0 | AC59: =SUM(AC50:AD58) -> 122,849,000
B60: 施設等整備事業費の合計 | P60: =P59 -> 480,500,000 | R60: =R59 -> 245,699,000 | S60: =S59 -> 122,850,000 | U60: =U59 -> 122,850,000 | W60: =W59 -> 0 | Y60: =Y59 -> 0 | AA60: =AA59 -> 0 | AC60: =AC59 -> 122,849,000
B73: （２）効果促進事業（交付等要綱第６第２項第２号関係） | AI73: 単位：円
B74: 事業内容 | N74: 経 費 | R74: 効果促進事業費 （交付対象事業費） （A＝B＋C＋D） | S74: 効果促進事業費の負担区分 | AE74: 貸付けの詳細 | AI74: 実施予定 期間
S75: 自己資金（B） | W75: 地方公共団体等による助成金（C） | AC75: 交付金（D） | AE75: 貸付機関名 (株)日本政策金融公庫等 | AG75: 貸付 時期 | AH75: 償還 年数
U76: うち貸付金 | W76: 都道府県 | Y76: 市町村 | AA76: その他
B77: ※効果促進事業について、食品衛生の専門家をすでに社外に配置している等の特段の事情がない限り、必ず記載すること 施設等整備事業の交付対象事業費の20％以内
B83: 注 効果促進事業を活用しない場合は、その理由を記載する。
B84: （３）全体事業費（施設等整備事業費と効果促進事業費の合計額）
X85: 単位：円
B86: 事業名 | I86: 交付対象事業費 | M86: 交付対象事業費の負担区分
M87: 自己資金（B） | R87: 地方公共団体等による助成金（C） | W87: 交付金（D）
P88: うち貸付金 | R88: 都道府県 | S88: 市町村 | U88: その他
B89: 施設等整備事業
B90: 効果促進事業
B91: 全体事業費
B93: （４）事業完了予定年月日 年 月 日

Sheet ５配分基準２ (hidden)
A1: 改 正 後
B2: ５ 配分基準
B3: Ⅱ 配分基準表該当項目
B4: （１）助成対象者の配分基準
B6: ① すでに輸出実績がある場合、直近年の輸出額
C7: □ | D7: １億円以上 | O7: □ | P7: ５千万円以上１億円未満 | Z7: □ | AA7: ５千万円未満
B10: ③ 次の（１）または（２）でポイントの高い方を選択できるものとする。
B11: （１）事業実施計画の最終年度での目標輸出額の増加割合
C12: □ | D12: 50％以上増 | J12: □ | K12: 40％以上 50％未満増 | Q12: □ | R12: 30％未満 40％未満増 | X12: □ | Y12: 20％以上 30％未満増 | AE12: □ | AF12: 20％未満増
B14: （２）事業実施計画の最終年度での目標輸出額の増加額
C15: □ | D15: ２億円以上増 | J15: □ | K15: １億円以上 ２億円未満増 | Q15: □ | R15: ５千万円以上 １億円未満増 | X15: □ | Y15: １千万円以上 ５千万円未満増 | AE15: □ | AF15: １千万円未満増
B18: ④ 農林水産物及び食品の輸出の促進に関する法律（令和○年法律第○号）第34条に規定する輸出事業計画の認定 又は、ＧＦＰグローバル産地計画の承認規程（平成31年２月１日付け30食産第4260号）の承認を採択決定までに受けている。
C20: □ | D20: 農林水産物及び食品の輸出の促進に関する法律 の第34条に規定する輸出事業計画の認定 | O20: □ | P20: ＧＦＰグローバル産地計画の 承認規程の承認 | Z20: □ | AA20: 認定を受けていない
B24: ⑤ 事業実施主体の財務状況は安定しているか。
C25: □ | D25: 直近３年の経常損益が３年連続黒字であり、かつ、直近の決算において累積損失がない。 | L25: □ | M25: 直近３年の経常損益のうち１年以上黒字であり、かつ、直近の決算において債務超過となっていない。（アは除く） | U25: □ | V25: 直近３年の経常損益が３年連続赤字である。又は、直近の決算において債務超過となっている。 | AD25: □ | AE25: 該当なし
B29: ⑥ 次の（１）から（３）で該当するものを選択。
C30: □ | D30: 政府機関が定める輸入条件（輸出先国の政府機関が当該輸出先国に輸入される農林水産物又は食品について定める食品衛生、動植物又は畜産物の検疫その他の事項についての条件をいう。）に対応するために必要な認証 | L30: □ | M30: 輸出に対応するために必要な認証 （ISO22000、GFSI承認規格（FSSC22000、SQF、JFS-C等）、 ハラール） | U30: □ | V30: 輸出に対応するために必要な認証 （JFS-B、有機JAS等） | AD30: □ | AE30: 輸出に関係のない認証 （JFS-A、自治体HACCP等）
B38: ⑦ ⑥でポイントを選択した場合、専門家等を活用するなどして施設認定の取得に向けた調査・検討を十分に行った取組となっている。
C39: □ | D39: ５カ国以上 | O39: □ | P39: ３カ国以上５カ国未満 | Z39: □ | AA39: ３カ国未満
B42: ⑧ 事業実施計画の最終年度における国産原料の使用額目標が、現在の120%以上となっている。
C43: □ | D43: なっている。 | T43: □ | U43: なっていない
B46: (注） | D46: 当該項目については、実施要綱別表２の配分基準表に基づき、記載すること。

Sheet ４成果目標
A1: 改 正 後
B2: ４ 成果目標
B3: （１）輸出額目標 | C3: 事業実施年度に対応する事業者の会計年度での額を記載していただければ結構です。 | I3: 単位：千円
B4: 現状 申請時点で把握可能な直近の年間輸出額 | C4: 事業実施年度 | D4: 目標年度に設定した年度については、以下に○を記入すること | I4: 成果目標： 目標年度における 輸出の増加額
H5: 〇
D6: １年度目 | E6: ２年度目 | F6: ３年度目 | G6: ４年度目 | H6: ５年度目
B7: （ 年 月期） | C7: （ 年 月期） | D7: （ 年 月期） | E7: （ 年 月期） | F7: （ 年 月期） | G7: （ 年 月期） | H7: （ 年 月期）
B8: ※目標年度における輸出額を、現状の輸出額と比較して２千万円以上増加させ、投資効率2.0以上とすることが応募要件となります。 ※今回、輸出先国の規制に対応するために整備する施設や機器を活用し製造等される商品の輸出額を記載してください。 （今回、輸出先国の規制に対応するために整備する施設や機器を活用せずに製造等される商品の輸出額は成果目標に計上できませんのでご注意ください。よって、現状額については 「２事業の概要等」の「2 別添（直近３年のうち年間輸出額が最大となる年度の内訳) と必ずしも一致しませんのでご注意ください。）
B9: ※１：「現状」には、把握可能な直近年の年間輸出額、「事業実施年度」には、本事業による施設等整備を実施する年度における年間輸出額見込みを記載する。 ※２：「１年度目」から「５年度目」の各年度における年間輸出額目標を記載する。 また、この期間中に目標年度を設定し、目標年度に設定した年度については、該当年度に○を記載する。 ※３：「成果目標」は、目標年度における輸出額 － 現状の輸出額 により算出の上、記載する。
B13: （２）現状値補正
B14: ※現状値については、天災その他の外的要因により平年に比べて大幅に変動しており、当該現状値のままでは適切なでない場合は、当該現状値を補正できるものとする。
B15: この場合、現状値は太字・斜体で記載するとともに、「根拠資料等」欄に現状値を補正した要因及び補正の方法（現状値の補正過程）を記載すること。
B16: 根拠資料等

Sheet ４別添（成果目標の設定根拠）
A1: ４ 別添（成果目標の設定根拠） | K1: 「2 事業の概要」の「（３）輸出拡大に向けた取組」の「１．輸出先となるターゲット国」で記載した国と同じ国を記載してください。 「4 成果目標」の金額と合致させてください。
B2: 成果目標の設定根拠として、各年度における品目別の輸出額及び輸出数量の国別内訳を記載すること。
B3: また、成果目標欄には、「目標年度における輸出額 － 現状の輸出額」 により算出した金額を記載すること。 | X3: 単位：千円、トン
B5: 現状 輸出額 | F5: 事業実施年度 輸出額 | I5: 目標年度に設定した年度については、以下に○を記入すること | X5: 成果目標： 目標年度における 輸出の増加額
I7: １年度目（ 年 月期） 輸出額 | L7: ２年度目（ 年 月期） 輸出額 | O7: ３年度目（ 年 月期） 輸出額 | R7: ４年度目（ 年 月期） 輸出額 | U7: ５年度目（ 年 月期） 輸出額
B8: 輸出品目 | C8: 輸出先国 | D8: 輸出額 | E8: 輸出数量 | F8: 輸出先国 | G8: 輸出額 | H8: 輸出数量 | I8: 輸出先国 | J8: 輸出額 | K8: 輸出数量 | L8: 輸出先国 | M8: 輸出額 | N8: 輸出数量 | O8: 輸出先国 | P8: 輸出額 | Q8: 輸出数量 | R8: 輸出先国 | S8: 輸出額 | T8: 輸出数量 | U8: 輸出先国 | V8: 輸出額 | W8: 輸出数量
C13: 品目合計
C18: 品目合計
C19: 全体合計 | F19: 合計 | I19: 合計 | L19: 合計 | O19: 合計 | R19: 合計 | U19: 合計
B20: （注）：複数の輸出品目や輸出先国がある場合は、適宜枠を追加すること。

Sheet ５配分基準
A1: 改 正 後
B2: ５ 配分基準（交付等要綱第７第２項関係）
B4: No. | C4: 評価項目及び配点基準 | D4: 該当する項目に、ポイント及びポイントの加算根拠を記載すること | F4: ポイント
B5: ① | C5: すでに輸出実績がある場合、直近３年のうち年間輸出額の最大金額が次のいずれかに該当する場合、当該ポイントを加算する。（複数選択不可） | D5: ア １億円 ≦ 輸出額 | F5: 3
D6: イ ５千万円 ≦ 輸出額 ＜ １億円 | F6: 2
D7: ウ １千万円 ≦ 輸出額 ＜ ５千万円 | F7: 1
C8: （ポイント加算根拠） ここで言う輸出額とは事業実施計画書における対象品目以外も含めた事業者全体についてです。 事業実施計画書 「２事業の概要等」の「2 別添（直近３年のうち年間輸出額が最大となる年度の内訳)」の数字と合致させてください。 記載例 : 2 別添（直近３年のうち年間輸出額が最大となる年度の内訳)」より 輸出額：9千万円
B9: ② | C9: 次のいずれかの認定・認証をすでに取得している場合、当該ポイントを加算する。（複数選択不可） | D9: ア 輸出促進法の第17条に基づく適合施設の認定 | F9: 4
D10: イ ISO22000、GFSI承認規格（FSSC22000、SQF、JFS-C等）、 FSMA（米国食品安全強化法）への対応、ハラール・コーシャ | F10: 3
D11: ウ JFS-B、有機JAS等（加工・流通施設における取得のみ対象） | F11: 1
C12: （ポイント加算根拠） ポイント加算根拠となる「認定・認証及び取得年月日」を記載し、根拠資料を別添で添付してください。 記載例 : ISO22000 〇〇工場 品目〇〇 〇年〇月〇日取得
B13: ③ | C13: 次の項目のいずれかに該当する場合、当該ポイントを加算する。（複数選択不可） | D13: 目標年度における輸出の増加額
D14: ア １億円 ≦ 増加額 | F14: 5
D15: イ ５千万円 ≦ 増加額 ＜ １億円 | F15: 4
D16: ウ ３千万円 ≦ 増加額 ＜ ５千万円 | F16: 3
D17: エ ２千万円 ≦ 増加額 ＜ ３千万円 | F17: 2
C18: （ポイント加算根拠） 4 成果目標の「成果目標 : 目標年度における輸出の増加額」と合致させてください。 記載例 : 事業実施計画書 ４ 成果目標より 輸出の増加額：〇〇円
B19: ④ | C19: 次の第１号若しくは第２号の認定・認証を事業実施計画にて取得予定としている場合又は第３号の対応を行う場合、当該ポイントを加算する。（複数選択不可） | D19: （１）輸出促進法の第17条に基づく適合施設の認定 | F19: 5
D20: （２）輸出に対応するために必要な認証
D21: ア ISO22000、GFSI承認規格（FSSC22000、SQF、JFS-C等）、FSMA（米国食品安全強化法）への対応、ハラール・コーシャ | F21: 4
D22: イ JFS-B、有機JAS等（加工・流通施設における取得のみ対象） | F22: 1
D23: （３）輸出先国における検疫や添加物等の規制への対応 | F23: 4
C24: （ポイント加算根拠） ポイント加算根拠となる取得予定の認定・認証及び取得予定年月を記載 記載例 : FSSC22000 〇〇工場 品目〇〇 〇年〇月取得予定
B25: ⑤ | C25: ALPS処理水の海洋放出に伴い輸入規制強化の対象となった品目のうち、次のいずれかの品目で、輸入規制強化を行った国・地域以外で輸出向けHACCP等の認定・認証を取得予定としている水産加工事業者の場合、当該ポイントを加算する。 | D25: （１）ホタテ又はナマコ （２）事業者の輸入規制強化を行った国・地域への輸出依存度が高く（２割以上）、年間の販売額が100万円以上の品目 | F25: 2
C27: （ポイント加算根拠） ポイント加算根拠となる品目を記載し、（２）の該当する場合は、輸出依存度と年間の販売額を記載 記載例 : ホタテ、ブリ（輸出依存度 55％、年間の販売額 2,200万円）
B28: ⑥ | C28: 令和７年に米国が発表した関税措置により影響を受け、又は受ける見込みのある事業者である。 | F28: 2
C29: （ポイント加算根拠） ポイント加算根拠となる影響（見込み含む）を記載し、根拠資料を別添で添付 記載例：米国への輸出割合が〇〇％（輸出額：〇〇円）である。関税措置に伴い米国への輸出割合が〇〇％（輸出額：〇〇円）減少する見込み。（資料添付）
B30: ⑦ | C30: 次のいずれかの取組に該当する場合、当該ポイントを加算する。（複数選択不可） | D30: （１）輸出向けHACCP等の認定・認証の取得に向けて、品質・衛生管理専門家等を活用した調査・検討を十分に行った取組となっている。 | F30: 2
D31: （２）検疫や添加物等の規制への対応として、当該規制に係る専門家を活用した調査・検討を十分に行った取組となっている。 | F31: 2
C32: （ポイント加算根拠） ポイント加算根拠となる内容を記載し、証拠資料を別添で添付 記載例 : 〇〇コンサルタントから指導を受けている（資料添付）
B33: ⑧ | C33: 「農林水産物・食品の輸出拡大実行戦略」において重点品目に位置づけられた品目の輸出拡大に向けた取組となっている。 | F33: 2
C34: （ポイント加算根拠） 「農林水産物・食品の輸出拡大実行戦略」において重点品目に位置づけられた２８の重点品目のうち、どの品目かを記載してください。 ただし、社として重点品目の商品を輸出しているとしても、本事業で整備して生産する商品が重点品目とは別のラインである等の場合は加点不可です。 記載例 : 重点品目「菓子」
B35: ⑨ | C35: 施設の新設・増築を伴う事業実施計画となっている。 | F35: 1
C36: （ポイント加算根拠） 「３機械・施設の整備計画等」において施設の新設・増築にかかる費用が掛かり増しで計上されている場合はその旨を記載ください。
B37: ⑩ | C37: 輸出商品の主原料における国産原料の使用割合が、次のいずれかに該当する場合、当該ポイントを加算する。（複数選択不可） ※ 複数商品が該当する場合、全体で使用割合を算定すること。 ※ 将来的な目標ではなく、現状の重量で算定すること。 | D37: ア 70％ ≦ 使用割合 | F37: 2
D38: イ 50％ ≦ 使用割合 ＜ 70％ | F38: 1
C39: （ポイント加算根拠） ポイント加算する場合は根拠となる内容を記載してください。「4.成果目標の別添(成果目標の設定根拠)」で整理される品目全体で算出してください。以下の参考例を参考に、算出根拠をここに記載してください。別添として添付していただいても結構です。 (計算等の参考例) ①主原料は製品当たりの重量割合が最も多い原料です（水を除く）。 ②製品が2種類の場合の国産原料使用割合の算出方法・・・現状の重量から算出してください。（まだ輸出していない場合は、サンプル輸出した製品又は国内出荷製品の重量で算出） 〇（A商品の輸出量/全体の輸出量×A商品の国産割合）＋（B商品の輸出量/全体の輸出量×B商品の国産割合）＝国産割合
B40: ⑪ | C40: 中小企業基本法（昭和三十八年法律第百五十四号）第二条で規定される中小企業者又は小規模企業者である。 | F40: 1
C41: （ポイント加算根拠） ポイント加算する場合は根拠となる内容を記載してください。中小企業基本法（昭和三十八年法律第百五十四号）第二条の何号により中小企業となるのかを記載してください。資本金及び従業員の数を記載し、確認できる資料を添付してください。 記載例 : 資本金が5000万円の製造業者であるため、中小企業に該当
B42: ⑫ | C42: 【都道府県ポイント】 地域の振興作物・産品など地域の実情を踏まえた取組となっているか。 | D42: ア 地域の実情を踏まえた取組となっており、十分に効果が見込まれる。 | F42: 2
D43: イ 地域の実情を踏まえた取組となっており、概ね効果が見込まれる。 | F43: 1
B44: ⑬ | C44: GFP大規模輸出産地生産基盤強化プロジェクト若しくは大規模輸出産地モデル形成等支援事業に採択された間接補助事業者（間接補助事業者と共にプロジェクトを実施する参画事業者を含む。）又はフラッグシップ輸出産地（フラッグシップ輸出産地選定実施要領（令和６年４月19日付け６輸国第256号）第５の規定により認定証の交付を受けた産地をいう。）に参画している事業者である。 | F44: 2
C45: （ポイント加算根拠） ポイント加算根拠となる内容を記載し、証拠資料を別添で添付 記載例 : GFP大規模輸出産地生産基盤強化プロジェクトに採択された間接補助事業者である。（資料添付）
B46: ⑭ | C46: 次の取組に該当する場合、当該ポイントを加算する。（複数選択可） | D46: （１）環境と調和のとれた食料システム確立のための環境負荷低減事業活動の促進等に関する法律（令和４年法律第37号。以下「みどりの食料システム法」という。）第40条第１項に規定する認定基盤確立事業者である。 | F46: 1
D47: （２）みどりの食料システム法第15条第２項第３号に規定する特定区域におけるみどりの食料システム法第23条に規定する認定事業活動を通じて生産された農林水産物を原材料として用いている。 | F47: 1
C48: （ポイント加算根拠） ポイント加算根拠となる内容を記載し、証拠資料を別添で添付 記載例 : 認定事業活動を通じて生産された農林水産物を原材料として用いている。（資料添付）
B49: 合計（ポイント欄については、最大合計点） | E49: =IFERROR(SUM(E5:E43),"") -> 0 | F49: 35
B50: (注）当該項目については、交付等要綱別表２の配分基準表に基づき記入することとし、評価項目①から⑪まで、⑬及び⑭は事業実施主体が記入すること。 また、評価項目⑫については、本事業計画が地域の実情を踏まえた取組となっているか都道府県が判断の上、地方農政局長等への本事業計画の提出の際、記入すること。

Sheet ６投資効率
B1: ６ 費用対効果分析（交付等要綱第30関係）
B3: １ 年総効果額（輸出額向上効果）
B6: 効果内容 | I6: 現況 (千円) ① | L6: 目標年度（千円) ② | O6: 年効果額 (千円) ③=②-①
B7: 輸出額 | I7: 「4.成果目標の別添(成果目標の設定根拠)」の数字と合致すること。
B8: データの根拠
B9: ①②事業実施計画より
B11: (1) 総合耐用年数の算出 | Q11: (単位：千円)
B12: 機械・施設名 | H12: 耐用年数 ① | J12: 工事費等 ② | N12: 年工事費(減価額) ③=②÷①
B13: 「３ 経費の内訳等」に記載の①機械・機器、②建物（設備）の名称と合致させてください。 ※ただし、共通仮設費、現場管理費、一般管理費、諸経費、設計費を除く。 | J13: 「３ 経費の内訳等」に記載の交付対象事業費を記入してください。
B20: 計 | J20: ④ | N20: ⑤
B21: 総合耐用年数 ⑥=④÷⑤ | Q21: 年
B22: データの根拠
B23: ①平成30年財務省令第31号
B24: ②事業実施計画より
B26: 注1 | C26: 総合耐用年数は、小数点以下１桁を切り上げて求めるものとします。
B27: 2 | C27: 欄が足りない場合には欄を追加して記載する。
B29: (2) 経済効果総括表 | T29: ｎ | U29: 還元率
B30: 区分 | F30: 算式 | I30: 数値 | N30: 備考 | T30: 5 | U30: 0.2246
B31: 施設等整備事業費 【２（1）④】 | F31: ① | L31: 千円 | T31: 6 | U31: 0.1908
B32: 年総効果額 【１③】 | F32: ② | L32: 千円 | T32: 7 | U32: 0.1666
B33: 総合耐用年数 【２（1）⑥】 | F33: ③ | L33: 年 | T33: 8 | U33: 0.1485
B34: 還元率 【別表】 | F34: ④ | T34: 9 | U34: 0.1345
B35: 投資効率 | F35: ⑤=(②÷④)÷① | T35: 10 | U35: 0.1233
T36: 11 | U36: 0.1142
B37: 注1 | C37: 還元率=｛ｉ×(１＋ｉ)ｎ｝÷｛(１＋ｉ)ｎ-１｝、ｉ=０．０４(割引率)、ｎ=総合耐用年数 （交付等要綱 別表３参照） | T37: 12 | U37: 0.1066
B38: 2 | C38: 投資効率は小数点以下３桁を切り上げて求めるものとします。 | T38: 13 | U38: 0.1001
T39: 14 | U39: 0.0947
T40: 15 | U40: 0.0899
T41: 16 | U41: 0.0858
T42: 17 | U42: 0.0822
T43: 18 | U43: 0.079
T44: 19 | U44: 0.0761
T45: 20 | U45: 0.0736
T46: 21 | U46: 0.0713
T47: 22 | U47: 0.0692
T48: 23 | U48: 0.0673
T49: 24 | U49: 0.0656
T50: 25 | U50: 0.064
T51: 26 | U51: 0.0626
T52: 27 | U52: 0.0612
T53: 28 | U53: 0.06
T54: 29 | U54: 0.0589
T55: 30 | U55: 0.0578
T56: 31 | U56: 0.0569
T57: 32 | U57: 0.0559
T58: 33 | U58: 0.0551
T59: 34 | U59: 0.0543
T60: 35 | U60: 0.0536
T61: 36 | U61: 0.0529
T62: 37 | U62: 0.0522
T63: 38 | U63: 0.0516
T64: 39 | U64: 0.0511
T65: 40 | U65: 0.0505
T66: 41 | U66: 0.05
T67: 42 | U67: 0.0495
T68: 43 | U68: 0.0491
T69: 44 | U69: 0.0487
T70: 45 | U70: 0.0483
T71: 46 | U71: 0.0479
T72: 47 | U72: 0.0475
T73: 48 | U73: 0.0472
T74: 49 | U74: 0.0469
T75: 50 | U75: 0.0466
T76: 51 | U76: 0.0463
T77: 52 | U77: 0.046
T78: 53 | U78: 0.0457
T79: 54 | U79: 0.0455
T80: 55 | U80: 0.0452
T81: 60 | U81: 0.0442
T82: 80 | U82: 0.0418
T83: 90 | U83: 0.0412
T84: 100 | U84: 0.0408

Sheet ７専門用語説明
A1: ７ 専門用語の説明
A2: これまでの記述内容に関して専門用語がある場合は下記に説明を記載する。
A3: 用 語 | B3: 説 明
A4: 計画書で多く使用する専門用語については、説明をお願いします。

Sheet ８添付書類
A1: (添付書類)
C2: 添付書類の「右上」及び「ファイル名」に、どの添付書類であるかわかるように番号を付してください。（例）決算報告書の2022年分場合 「（1）③決算報告書2022年分」
C3: 別添を付ける場合は、本文に別添①のように記載して、添付資料にも「別添①」と記載してください。
A4: （１）必須書類
B5: ① | C5: 定款
B6: ② | C6: 登記事項証明書(抵当権が設定されている建物を整備する場合は、建物の登記事項証明書も添付してください。)
B7: ③ | C7: 直近３か年分の決算報告書（貸借対照表、損益計算書等）
B8: ④ | C8: ①及び②の資料がない場合は、組織の代表者、規約等の分かる資料
B9: ⑤ | C9: 本事業において連携する者との連携状況や役割分担等が確認できる資料（規約等）
B10: ⑥ | C10: 見積書又は積算書
C11: ・2者以上の見積書を提出していただきます。
C12: ・「3 事業実施計画」に付したNo.と対応した見積書を添付してください。見積書の右上に「⑥-1」等、記載してください。
B13: ⑦ | C13: 機械・施設等の位置図（施設等の位置がわかる地図等）
B14: ⑧ | C14: 機械・施設等の配置図及び平面図
C15: (HACCPに基づく清潔区域、準清潔区域等が記載され、施設整備や機械導入が当事業対象であることが分かりやすい図面としてください。 また、施設整備等の工事見積書に記載された工事内容が図面のどの場所に当たるのか分かるように図面に記載ください。)
B16: ⑨ | C16: 機械・施設整備の工程（工事日程）表 （入札・契約・工事期間・しゅん工時期がわかるように記載してください。）
B17: ⑩ | C17: 商品の製造工程（フローチャート） （今回整備する機器が製造工程のどの工程で使用するのかわかるように記載してください。）
B18: ⑪ | C18: 貸付機関からの資金の貸付けに係る計画について、当該資金を貸し付ける機関と事前相談等を行ったことが確認できる資料
C19: （融資予定額、償還年数、資金使途、貸付機関名（支店名）、担当者名、連絡先、相談月日等を明記したもの）
C20: 要望調査及び事業計画の協議段階では、相談を行ったことが分かる書類。交付決定までには融資を受けることが確実であることが分かる書類を提出してください。実際の融資を受けるタイミングとしては、融資を事業実施期間中に受けていただき、「事業実施に融資を活用した」という事実を説明できるようにしてください。このため、遅くとも、施工業者への支払時には融資を受けている必要があります。 （※「支払に融資を充てた」ということが必要です。特に自費で賄える場合、利子を最小限にするために融資を受けて即返すことも想定されますが、支払に充てられていないということにならないようご注意願います。）
B21: ⑫ | C21: 「農林水産業・食品産業の作業安全のための規範（個別規範）」（令和３年２月農林水産省決定）のうち該当する業種に係るチェックシート
B22: ⑬ | C22: 「補助事業及び物品・役務の調達（委託事業を含む）における環境負荷低減のクロスコンプライアンスの試行実施について」（令和５年12月27日付け農林水産省大臣官房環境バイオマス政策課長通知)
C23: に定める環境負荷低減のクロスコンプライアンスチェックシート（食品関連事業者向け）
B24: ⑭ | C24: 輸出事業計画認定申請書（既に認定済みの輸出事業計画による場合にあってはその計画書）
B25: ⑮ | C25: HACCPハード事業の施設等整備計画において予定している施設の改修及び導入予定としている機器等の必要性について
B26: ⑯ | C26: 輸出目標額の設定の考え方と計算根拠（輸出数量、単価）が分かる資料
A28: （２）該当する場合に必要な書類
B29: ① | C29: 施設用地について農地法又は農業振興地域の整備に関する法律に係る手続きを行う必要がある場合は、その手続等の資料
C30: ※土地の購入及び借地の場合・・・相談記録ではなく、購入先及び賃貸主から購入及び賃借に関する契約締結を確約する書類をもらうことが必要。交付決定時には契約を締結済みであること。(交付決定前着手届も契約締結後の提出とすること) ※農地転用に関しては、土地の購入前であれば手続きを進める旨の誓約書の提出が必要であり、手続きが済んだことを証する書類の提出をもって交付決定を行うこととする。(交付決定前着手届も手続きが済んだ後の提出とすること)
B31: ② | C31: 土地や施設等を他者から貸借して事業を実施する場合は、事業の実施期間中、確実に事業実施出来ることを証する賃貸借契約書や誓約書等の資料
B32: ③ | C32: 取得予定の認定・認証に関する品質・衛生管理専門家や検疫対応に専門等の指導内容が分かる書面
B33: ④ | C33: 国産原料の使用割合が確認できる資料 （契約書類、仕入伝票、使用割合算出表）
B34: ⑤ | C34: 交付等要綱第４第３号のイに定める認証を取得済みの場合は、取得を証明する書類
B35: ⑥ | C35: GFP大規模輸出産地生産基盤強化プロジェクト若しくは大規模輸出産地モデル形成等支援事業に採択された間接補助事業者（間接補助事業者と共にプロジェクトを実施する参画事業者を含む。）
C36: 又はフラッグシップ輸出産地（フラッグシップ輸出産地選定実施要領（令和６年４月19日付け６輸国第256号）第５の規定により認定証の交付を受けた産地をいう。）に参画している事業者
C37: であることが確認できる資料
B38: ⑦ | C38: みどりの食料システム法の認定基盤確立事業者であることが確認できる資料
B39: ⑧ | C39: みどりの食料システム法の特定区域における認定事業活動を通じて生産された農林水産物の使用が確認できる資料
C40: （当該区域内の生産者との農林水産物納入契約書、打合せ記録 等）
B41: ⑨ | C41: その他、地方農政局長等が特に必要と認める資料（HACCP研修を受講したことがわかる資料等）

Sheet 費用対効果 (記載例)
B1: ６ 費用対効果分析（交付等要綱第30関係） | I1: 例
B4: １ 年総効果額（輸出額向上効果）
B5: 効果内容 | I5: 現況 (千円) ① | L5: 目標年度（千円) ② | O5: 年効果額 (千円) ③=②-①
B6: 輸出額 | I6: 20,000 | L6: 45,000 | O6: =L6-I6 -> 25,000
B7: データの根拠
B8: ①②事業実施計画より
B11: ２ 投資効率等の総括
B12: (1) 総合耐用年数の算出 | Q12: (単位：千円)
B13: 機械・施設名 | H13: 耐用年数 ① | J13: 工事費等 ② | N13: 年工事費(減価額) ③=②÷①
B14: ○○○ | H14: 10 | J14: 600 | N14: =J14/H14 -> 60
B15: ○○○ | H15: 10 | J15: 2,400 | N15: =J15/H15 -> 240
B16: ○○○ | H16: 15 | J16: 880 | N16: =J16/H16 -> 59
B17: ○○○ | H17: 8 | J17: 1,000 | N17: =J17/H17 -> 125
B18: 施設 | H18: 31 | J18: 40,000 | N18: =J18/H18 -> 1,290
B19: 計 | J19: ④ | K19: =SUM(J14:M18) -> 44,880 | N19: ⑤ | O19: =SUM(N14:Q18) -> 1,774
B20: 総合耐用年数 ⑥=④÷⑤ | J20: =ROUNDUP(K19/O19,0) -> 26 | Q20: 年
B21: データの根拠
B22: ①平成30年財務省令第31号
B23: ②事業実施計画より
B25: 注1 | C25: 総合耐用年数は、小数点以下１桁を切り上げて求めるものとします。
B26: 2 | C26: 欄が足りない場合には欄を追加して記載する。
B28: (2) 経済効果総括表 | T28: ｎ | U28: 還元率
B29: 区分 | F29: 算式 | I29: 数値 | N29: 備考 | T29: 5 | U29: 0.2246
B30: 施設等整備事業費 【２（1）④】 | F30: ① | I30: =K19 -> 44,880 | L30: 千円 | T30: 6 | U30: 0.1908
B31: 年総効果額 【１③】 | F31: ② | I31: =O6 -> 25,000 | L31: 千円 | T31: 7 | U31: 0.1666
B32: 総合耐用年数 【２（1）⑥】 | F32: ③ | I32: =J20 -> 26 | L32: 年 | T32: 8 | U32: 0.1485
B33: 還元率 【別表】 | F33: ④ | I33: =VLOOKUP(I32,T29:U83,2,FALSE) -> 0.0626 | T33: 9 | U33: 0.1345
B34: 費用対効果 | F34: ⑤=(②÷④)÷① | I34: =ROUNDUP((I31/I33)/I30,2) -> 8.90 | T34: 10 | U34: 0.1233
T35: 11 | U35: 0.1142
B36: 注1 | C36: 還元率=｛ｉ×(１＋ｉ)ｎ｝÷｛(１＋ｉ)ｎ-１｝、ｉ=０．０４(割引率)、ｎ=総合耐用年数 （交付等要綱 別表３参照） | T36: 12 | U36: 0.1066
B37: 2 | C37: 費用対効果は小数点以下３桁を切り上げて求めるものとします。 | T37: 13 | U37: 0.1001
T38: 14 | U38: 0.0947
T39: 15 | U39: 0.0899
T40: 16 | U40: 0.0858
T41: 17 | U41: 0.0822
T42: 18 | U42: 0.079
T43: 19 | U43: 0.0761
T44: 20 | U44: 0.0736
T45: 21 | U45: 0.0713
T46: 22 | U46: 0.0692
T47: 23 | U47: 0.0673
T48: 24 | U48: 0.0656
T49: 25 | U49: 0.064
T50: 26 | U50: 0.0626
T51: 27 | U51: 0.0612
T52: 28 | U52: 0.06
T53: 29 | U53: 0.0589
T54: 30 | U54: 0.0578
T55: 31 | U55: 0.0569
T56: 32 | U56: 0.0559
T57: 33 | U57: 0.0551
T58: 34 | U58: 0.0543
T59: 35 | U59: 0.0536
T60: 36 | U60: 0.0529
T61: 37 | U61: 0.0522
T62: 38 | U62: 0.0516
T63: 39 | U63: 0.0511
T64: 40 | U64: 0.0505
T65: 41 | U65: 0.05
T66: 42 | U66: 0.0495
T67: 43 | U67: 0.0491
T68: 44 | U68: 0.0487
T69: 45 | U69: 0.0483
T70: 46 | U70: 0.0479
T71: 47 | U71: 0.0475
T72: 48 | U72: 0.0472
T73: 49 | U73: 0.0469
T74: 50 | U74: 0.0466
T75: 51 | U75: 0.0463
T76: 52 | U76: 0.046
T77: 53 | U77: 0.0457
T78: 54 | U78: 0.0455
T79: 55 | U79: 0.0452
T80: 60 | U80: 0.0442
T81: 80 | U81: 0.0418
T82: 90 | U82: 0.0412
T83: 100 | U83: 0.0408

Sheet (参考)かかり増しチェック表
B1: 新設・増築の場合【掛かり増しチェック表記載例】
A2: ○○県 （株）○○ | D2: （１） | E2: （２） | F2: （３） | G2: (２)-（３) | H2: 参考資料
D3: 交付対象外経費を含めた施設等整備に要する経費 | E3: （１）のうちHACCP対応設備等部分の経費 | F3: （２）のうち構造耐力上主要な部分(壁と床版は除く)の経費 （旧：HACCP非対応経費） | G3: 交付対象事業費 (掛かり増し経費)
A4: 施設 | C4: （※1）工事の種類等
A5: 1 | B5: 水産加工施設 | C5: 建築工事 | D5: 240,000,000 | E5: =D5*0.78 -> 187,200,000 | F5: 124,450,000 | G5: =E5-F5 -> 62,750,000 | H5: 見積書
A6: 2 | B6: 水産加工施設 | C6: 電気設備工事 | D6: 47,000,000 | E6: 36,660,000 | F6: （※2）0 | G6: 36,660,000 | H6: 見積書
A7: 3 | B7: 水産加工施設 | C7: 機械設備工事 | D7: 76,000,000 | E7: 59,280,000 | F7: 0 | G7: =E7-F7 -> 59,280,000 | H7: 見積書
A8: 4 | B8: 水産加工施設 | C8: 空調設備工事 | D8: 55,000,000 | E8: =D8*0.78 -> 42,900,000 | F8: 0 | G8: 42,900,000 | H8: 見積書
A9: 5 | B9: 水産加工施設 | C9: 給排水設備工事 | D9: 45,000,000 | E9: 35,100,000 | F9: 0 | G9: =E9-F9 -> 35,100,000 | H9: 見積書
A10: 6 | B10: 水産加工施設 | C10: 共通費 | D10: 17,500,000 | E10: =D10*0.78 -> 13,650,000 | F10: =E10*0.34 -> 4,641,000 | G10: =E10-F10 -> 9,009,000 | H10: 見積書
A11: 7 | B11: 水産加工施設 | C11: 既存施設撤去費 | D11: 37,000,000 | E11: 0 | F11: 0 | G11: （※3）0 | H11: 見積書
C12: 合計 | D12: =SUM(D5:D11) -> 517,500,000 | E12: =SUM(E5:E11) -> 374,790,000 | F12: =SUM(F5:F11) -> 129,091,000 | G12: =E12-F12 -> 245,699,000
B14: 備考： | C14: （上記の記載例のように表を埋められない場合等はここに要説明） ・共通費と実施設計費の（３）の金額は、掛かり増し経費の直接工事費（建築工事～給排水設備工事）の率((3)/(2)＝34％)を用いて算出した。 ・建築工事の（２）（３）については、建物全体の体積から事務室、休憩室等を除いた加工施設の体積率を乗じて算出した。 ・電気、機械、空調、給排水の（２）については、上記の体積率を乗じて算出した。
B15: 注意事項
B16: ※1 工事の種類等は見積書どおりに記載。（見積書では細かく分けられすぎている等の都合で、事業実施計画書では一部まとめられていてもかまわないが、その場合はどの項目とどの項目がまとめられ、どのような名称で書かれているかが明確になるように示すこと。（整備の概要が分からないほどに、まとめられすぎているものは不可）
B17: ※2 該当する経費が0となる場合であっても、この表では見積書の確認としてすべて記載すること。
B18: ※3 交付対象事業費が0となるものは事業実施計画書に記載しない。

Sheet 費用対効果（概算） (hidden)
B1: ６ 費用対効果分析
B2: 総合耐用年数： | D2: 10 | J2: 総合耐用年数： | L2: 11
B3: 費用対効果 | D3: 還元率 | E3: 事業費（百万円） | G3: 効果（百万円） | J3: 費用対効果 | L3: 還元率 | M3: 事業費（百万円） | O3: 効果（百万円） | S3: ｎ | T3: 還元率
B4: 1 | D4: =VLOOKUP($D$2,$S$4:$T$58,2,FALSE) -> 0.1233 | E4: 100 | G4: =B4*D4*E4 -> 12.3 | J4: 1 | L4: =VLOOKUP($L$2,$S$4:$T$58,2,FALSE) -> 0.1142 | M4: 100 | O4: =J4*L4*M4 -> 11.4 | S4: 5 | T4: 0.2246
B5: 2 | D5: =VLOOKUP($D$2,$S$4:$T$58,2,FALSE) -> 0.1233 | E5: 100 | G5: =B5*D5*E5 -> 24.7 | J5: 2 | L5: =VLOOKUP($L$2,$S$4:$T$58,2,FALSE) -> 0.1142 | M5: 100 | O5: =J5*L5*M5 -> 22.8 | S5: 6 | T5: 0.1908
B6: 3 | D6: 0.1233 | E6: 100 | G6: 37.0 | J6: 3 | L6: 0.1142 | M6: 100 | O6: 34.3 | S6: 7 | T6: 0.1666
B7: 4 | D7: 0.1233 | E7: 100 | G7: 49.3 | J7: 4 | L7: 0.1142 | M7: 100 | O7: 45.7 | S7: 8 | T7: 0.1485
B8: 5 | D8: 0.1233 | E8: 100 | G8: 61.7 | J8: 5 | L8: 0.1142 | M8: 100 | O8: 57.1 | S8: 9 | T8: 0.1345
B9: 6 | D9: 0.1233 | E9: 100 | G9: 74.0 | J9: 6 | L9: 0.1142 | M9: 100 | O9: 68.5 | S9: 10 | T9: 0.1233
B10: 7 | D10: 0.1233 | E10: 100 | G10: 86.3 | J10: 7 | L10: 0.1142 | M10: 100 | O10: 79.9 | S10: 11 | T10: 0.1142
B11: 8 | D11: 0.1233 | E11: 100 | G11: 98.6 | J11: 8 | L11: 0.1142 | M11: 100 | O11: 91.4 | S11: 12 | T11: 0.1066
B12: 9 | D12: 0.1233 | E12: 100 | G12: 111.0 | J12: 9 | L12: 0.1142 | M12: 100 | O12: 102.8 | S12: 13 | T12: 0.1001
B13: 10 | D13: 0.1233 | E13: 100 | G13: 123.3 | J13: 10 | L13: 0.1142 | M13: 100 | O13: 114.2 | S13: 14 | T13: 0.0947
B14: 11 | D14: 0.1233 | E14: 100 | G14: 135.6 | J14: 11 | L14: 0.1142 | M14: 100 | O14: 125.6 | S14: 15 | T14: 0.0899
B15: 12 | D15: 0.1233 | E15: 100 | G15: 148.0 | J15: 12 | L15: 0.1142 | M15: 100 | O15: 137.0 | S15: 16 | T15: 0.0858
B16: 13 | D16: 0.1233 | E16: 100 | G16: 160.3 | J16: 13 | L16: 0.1142 | M16: 100 | O16: 148.5 | S16: 17 | T16: 0.0822
B17: 14 | D17: 0.1233 | E17: 100 | G17: 172.6 | J17: 14 | L17: 0.1142 | M17: 100 | O17: 159.9 | S17: 18 | T17: 0.079
B18: 15 | D18: 0.1233 | E18: 100 | G18: 185.0 | J18: 15 | L18: 0.1142 | M18: 100 | O18: 171.3 | S18: 19 | T18: 0.0761
B19: 16 | D19: 0.1233 | E19: 100 | G19: 197.3 | J19: 16 | L19: 0.1142 | M19: 100 | O19: =J19*L19*M19 -> 182.7 | S19: 20 | T19: 0.0736
B20: 17 | D20: 0.1233 | E20: 100 | G20: 209.6 | J20: 17 | L20: 0.1142 | M20: 100 | O20: =J20*L20*M20 -> 194.1 | S20: 21 | T20: 0.0713
B21: 18 | D21: 0.1233 | E21: 100 | G21: 221.9 | J21: 18 | L21: 0.1142 | M21: 100 | O21: 205.6 | S21: 22 | T21: 0.0692
S22: 23 | T22: 0.0673
S23: 24 | T23: 0.0656
B24: 総合耐用年数： | D24: 15 | J24: 総合耐用年数： | L24: 20 | S24: 25 | T24: 0.064
B25: 費用対効果 | D25: 還元率 | E25: 事業費（百万円） | G25: 効果（百万円） | J25: 費用対効果 | L25: 還元率 | M25: 事業費（百万円） | O25: 効果（百万円） | S25: 26 | T25: 0.0626
B26: 1 | D26: =VLOOKUP($D$24,$S$4:$T$58,2,FALSE) -> 0.0899 | E26: 100 | G26: =B26*D26*E26 -> 9.0 | J26: 1 | L26: =VLOOKUP($L$24,$S$4:$T$58,2,FALSE) -> 0.0736 | M26: 100 | O26: =J26*L26*M26 -> 7.4 | S26: 27 | T26: 0.0612
B27: 2 | D27: 0.0899 | E27: 100 | G27: =B27*D27*E27 -> 18.0 | J27: 2 | L27: 0.0736 | M27: 100 | O27: =J27*L27*M27 -> 14.7 | S27: 28 | T27: 0.06
B28: 3 | D28: 0.0899 | E28: 100 | G28: 27.0 | J28: 3 | L28: 0.0736 | M28: 100 | O28: 22.1 | S28: 29 | T28: 0.0589
B29: 4 | D29: 0.0899 | E29: 100 | G29: 36.0 | J29: 4 | L29: 0.0736 | M29: 100 | O29: 29.4 | S29: 30 | T29: 0.0578
B30: 5 | D30: 0.0899 | E30: 100 | G30: 45.0 | J30: 5 | L30: 0.0736 | M30: 100 | O30: 36.8 | S30: 31 | T30: 0.0569
B31: 6 | D31: 0.0899 | E31: 100 | G31: 53.9 | J31: 6 | L31: 0.0736 | M31: 100 | O31: 44.2 | S31: 32 | T31: 0.0559
B32: 7 | D32: 0.0899 | E32: 100 | G32: 62.9 | J32: 7 | L32: 0.0736 | M32: 100 | O32: 51.5 | S32: 33 | T32: 0.0551
B33: 8 | D33: 0.0899 | E33: 100 | G33: 71.9 | J33: 8 | L33: 0.0736 | M33: 100 | O33: 58.9 | S33: 34 | T33: 0.0543
B34: 9 | D34: 0.0899 | E34: 100 | G34: 80.9 | J34: 9 | L34: 0.0736 | M34: 100 | O34: 66.2 | S34: 35 | T34: 0.0536
B35: 10 | D35: 0.0899 | E35: 100 | G35: =B35*D35*E35 -> 89.9 | J35: 10 | L35: 0.0736 | M35: 100 | O35: 73.6 | S35: 36 | T35: 0.0529
B36: 11 | D36: 0.0899 | E36: 100 | G36: 98.9 | J36: 11 | L36: 0.0736 | M36: 100 | O36: 81.0 | S36: 37 | T36: 0.0522
B37: 12 | D37: 0.0899 | E37: 100 | G37: =B37*D37*E37 -> 107.9 | J37: 12 | L37: 0.0736 | M37: 100 | O37: 88.3 | S37: 38 | T37: 0.0516
B38: 13 | D38: 0.0899 | E38: 100 | G38: =B38*D38*E38 -> 116.9 | J38: 13 | L38: 0.0736 | M38: 100 | O38: 95.7 | S38: 39 | T38: 0.0511
B39: 14 | D39: 0.0899 | E39: 100 | G39: 125.9 | J39: 14 | L39: 0.0736 | M39: 100 | O39: 103.0 | S39: 40 | T39: 0.0505
B40: 15 | D40: 0.0899 | E40: 100 | G40: 134.9 | J40: 15 | L40: 0.0736 | M40: 100 | O40: 110.4 | S40: 41 | T40: 0.05
B41: ↓ | D41: ↓ | E41: ↓ | G41: ↓ | J41: ↓ | L41: ↓ | M41: ↓ | O41: ↓ | S41: 42 | T41: 0.0495
B42: 22 | D42: =VLOOKUP($D$24,$S$4:$T$58,2,FALSE) -> 0.0899 | E42: 100 | G42: =B42*D42*E42 -> 197.8 | J42: 27 | L42: =VLOOKUP($L$24,$S$4:$T$58,2,FALSE) -> 0.0736 | M42: 100 | O42: 198.7 | S42: 43 | T42: 0.0491
B43: 23 | D43: =VLOOKUP($D$24,$S$4:$T$58,2,FALSE) -> 0.0899 | E43: 100 | G43: 206.8 | J43: 28 | L43: =VLOOKUP($L$24,$S$4:$T$58,2,FALSE) -> 0.0736 | M43: 100 | O43: 206.1 | S43: 44 | T43: 0.0487
S44: 45 | T44: 0.0483
S45: 46 | T45: 0.0479
S46: 47 | T46: 0.0475
S47: 48 | T47: 0.0472
S48: 49 | T48: 0.0469
S49: 50 | T49: 0.0466
S50: 51 | T50: 0.0463
S51: 52 | T51: 0.046
S52: 53 | T52: 0.0457
S53: 54 | T53: 0.0455
S54: 55 | T54: 0.0452
S55: 60 | T55: 0.0442
S56: 80 | T56: 0.0418
S57: 90 | T57: 0.0412
S58: 100 | T58: 0.0408

Sheet （別表）還元率一覧表 (hidden)
B2: ｎ | C2: 還元率
B3: 5 | C3: 0.2246
B4: 6 | C4: 0.1908
B5: 7 | C5: 0.1666
B6: 8 | C6: 0.1485
B7: 9 | C7: 0.1345
B8: 10 | C8: 0.1233
B9: 11 | C9: 0.1142
B10: 12 | C10: 0.1066
B11: 13 | C11: 0.1001
B12: 14 | C12: 0.0947
B13: 15 | C13: 0.0899
B14: 16 | C14: 0.0858
B15: 17 | C15: 0.0822
B16: 18 | C16: 0.079
B17: 19 | C17: 0.0761
B18: 20 | C18: 0.0736
B19: 21 | C19: 0.0713
B20: 22 | C20: 0.0692
B21: 23 | C21: 0.0673
B22: 24 | C22: 0.0656
B23: 25 | C23: 0.064
B24: 26 | C24: 0.0626
B25: 27 | C25: 0.0612
B26: 28 | C26: 0.06
B27: 29 | C27: 0.0589
B28: 30 | C28: 0.0578
B29: 31 | C29: 0.0569
B30: 32 | C30: 0.0559
B31: 33 | C31: 0.0551
B32: 34 | C32: 0.0543
B33: 35 | C33: 0.0536
B34: 36 | C34: 0.0529
B35: 37 | C35: 0.0522
B36: 38 | C36: 0.0516
B37: 39 | C37: 0.0511
B38: 40 | C38: 0.0505
B39: 41 | C39: 0.05
B40: 42 | C40: 0.0495
B41: 43 | C41: 0.0491
B42: 44 | C42: 0.0487
B43: 45 | C43: 0.0483
B44: 46 | C44: 0.0479
B45: 47 | C45: 0.0475
B46: 48 | C46: 0.0472
B47: 49 | C47: 0.0469
B48: 50 | C48: 0.0466
B49: 51 | C49: 0.0463
B50: 52 | C50: 0.046
B51: 53 | C51: 0.0457
B52: 54 | C52: 0.0455
B53: 55 | C53: 0.0452
B54: 60 | C54: 0.0442
B55: 80 | C55: 0.0418
B56: 90 | C56: 0.0412
B57: 100 | C57: 0.0408

Sheet 別紙様式１－１号 (hidden)
B3: 別紙様式第１－１号
B4: 令和 年度 HACCP事業
B6: □ | D6: 適切な人・農地プランの作成等がされている地区 | K6: □ | M6: 人・農地プランの作成等がされていないが農地中間管理機構から賃借権等の設定等を受けた者が営農範囲とする地区
B9: （注） | D9: 該当する項目の□にチェックを入れる。
B11: 都道府県名 | H11: 市町村名 | N11: 地区名 | T11: 事業実施年度 | AA11: 目標年度 | AH11: 事業実施主体
T13: 令和元年度 | AA13: 令和5年度
B16: Ⅰ 事業実施地区の成果目標 | V16: （単位：経営体）
B17: 成果目標項目 | N17: 1年度目 | W17: 2年度目 | AF17: 3年度目
N18: （平成30年度） | W18: （平成31年度） | AF18: （目標年度：平成32年度）
B19: 必須目標 | C19: ① | D19: 付加価値額の拡大
B21: 事業関連取組目標 | C21: ② | D21: 経営面積の拡大
C23: ③ | D23: 農産物の価値向上
C25: ④ | D25: 単位面積当たり収量の増加
C27: ⑤ | D27: 経営コストの縮減
C29: ⑥ | D29: 農業経営の複合化
C31: ⑦ | D31: 農業経営の法人化
B33: (注) | D33: 各項目を成果目標として設定した地区内の経営体の数を、年度ごとに記載すること。 なお、１年度目及び２年度目において現状からの改善が行われない経営体は、目標を設定した経営体に該当しないため、 それぞれの年度の経営体数に含めない。
B36: Ⅱ 施設整備計画
B37: １ 融資主体型補助・追加的信用供与補助計画 | AM37: （単位：円）
B38: 区 分 | H38: 事業費 | L38: 負担区分 | AJ38: 備 考
L39: 補助金 | P39: 対象経営体負担経費 | X39: 都道 府県費 | AB39: 市町村費 | AF39: その他
H40: G=A+B+C +D+E+F | P40: 融資 | T40: 自己負担
L41: A | P41: B | T41: C | X41: D | AB41: Ｅ | AF41: Ｆ
B42: 融資主体型補助事業 | H42: =IF(L42="","",L42+X42+AB42+AF42+P42+T42) ->  | AN42: 経営体
C43: うちイノベーション支援 | H43: =IF(L43="","",L43+X43+AB43+AF43+P43+T43) ->  | AN43: 経営体
B44: 追加的信用供与補助事業 | H44: =IF(L44="","",L44) ->  | L44: =IF(AJ45="","",(ROUNDDOWN(AJ45*1/15,-3))) ->  | AJ44: 保証希望融資額：
AO45: 円
C46: うちイノベーション支援 | H46: =IF(L46="","",L46) ->  | L46: =IF(AJ47="","",(ROUNDDOWN(AJ47*1/15,-3))) ->  | AJ46: 保証希望融資額：
AO47: 円
B48: 計 | H48: =IF(H42="","",SUM(L48:T48)) ->  | L48: =IF(L42="","",SUM(L42,L44)) ->  | P48: =IF(P42="","",SUM(P42)) ->  | T48: =IF(T42="","",SUM(T42)) ->  | X48: =IF(X42="","",SUM(X42)) ->  | AB48: =IF(AB42="","",SUM(AB42)) ->  | AF48: =IF(AF42="","",SUM(AF42)) -> 
C49: うちイノベーション支援 | H49: =IF(H43="","",SUM(L49:T49)) ->  | L49: =IF(L43="","",SUM(L43,L46)) ->  | P49: =IF(P43="","",SUM(P43)) ->  | T49: =IF(T43="","",SUM(T43)) ->  | X49: =IF(X43="","",SUM(X43)) ->  | AB49: =IF(AB43="","",SUM(AB43)) ->  | AF49: =IF(AF43="","",SUM(AF43)) -> 
B51: ２ 附帯事務費
R52: 事業費 | U52: 負担区分 | AG52: 適否 （市町村：Ⅱの１の事業費の0.4％以内）
U53: 補助金 | X53: 都道 府県費 | AA53: 市町村費 | AD53: その他
R54: Z=a+b +c+d
U55: a | X55: b | AA55: c | AD55: d
B56: 市町村附帯事務費 | R56: =IF(U56="","",U56+AA56) ->  | AG56: =IF(R56="","",IF(R56>H48*0.4%,"否","適")) -> 
B59: ［附帯事務費の具体的内容］
L60: 具体的な使途
B61: 市町村附帯事務費
B65: Ⅲ 事業実施主体の概要
B66: 市町村名 | U66: 代表者名
B68: 事務局担当部局 | U68: 事務責任者 | AC68: （役職）
AC69: （氏名）
B70: 電話・ファックス | J70: ＴＥＬ | U70: 事務担当者 | AC70: （役職）
J71: ＦＡＸ | AC71: （氏名）
B73: Ⅳ 市町村域を超える場合の調整
B74: □ | D74: 事業実施地区が市町村域を超える場合に関係自治体と調整を行っている。
D76: 調整内容等について
B79: （注）関係自治体と調整した場合に□にチェックを入れること。
B81: 〔添付資料〕
B82: １．別紙様式第１－１号別添１ 予算の配分基準ポイント
B83: ２．別紙様式第１－１号別添２ 融資主体型補助事業対象経営体調書
B84: ３．別紙様式第１－１号別添３ 人・農地プランの適切性等
B85: ４．計画位置図
B86: 計画位置図は、既存の市町村地形図等を用い、次の要領で作成するものとする。
C87: （１）実施地区を黒色の実線で囲む。
C88: （２）助成対象者ごとの受益範囲を色分けして図示する。
C89: （３）農地等の改良、造成又は復旧の場合、施行位置を事業ごとの色で囲む。（農道等の線的事業については、該当路線等を図示）
C90: （４）機械等の施行位置は、設置場所（機械については保管場所）を事業ごとの色で図示する。
C91: （５）施行位置は、対象経営体、事業内容の異なる個々の事業ごとに図示し、実線を引いて余白に当該事業の対象経営体名、事業内容を表示する。
B92: ５．対象経営体が法人、特定農業団体、集落営農組織その他任意団体の場合は、当該団体の定款、規約、構成員の状況及びその他経営状況が分かる資 料。
B93: ６．事業実施主体が定める本補助金の交付に関する規程又は要綱等
B94: ７．事業実施地区の人・農地プラン
B95: 人・農地プランの作成に当たっての地域の話合い等の状況や今後の予定等が分かる資料
B96: ８．その他都道府県知事が必要と認める資料

Sheet 別紙様式１－１号別添3 (hidden)
A1: 改 正 後 | AQ1: 改 正 前
B2: 別紙様式第１－１号別添３
B3: 人・農地プランの適切性等
B5: 市町村名：
B8: １ 適切な人・農地プランの作成等がされている地区における事業
B9: 地区名 | H9: 経営体育成支援事業実施要綱別記１の第１の３の（１）のアの（ア）について実施されている。
H10: 地域内の話合い等の状況及び公表の状況等について
H11: □ | J11: 地域内の関係者で話合い等がなされている。 | AC11: 話合い等がなされた年月日
AF12: 年 | AH12: 月 | AJ12: 日
H13: □ | J13: 話合い等の中で、今後の地域農業のあり方（農地集積・規模拡大、複合化、高付加価値化等）や農地中間管理機構の位置づけについて検討、人・農地プランに反映されている。
H15: □ | J15: 人・農地プランが作成又は見直しされている。 | AC15: （ | AH15: ） | AI15: された年月日 | AR15: 作成
AF16: 年 | AH16: 月 | AJ16: 日 | AR16: 見直し
B17: ○○地区 | H17: □ | J17: 人・農地プランを公表又は公表を予定している。 | AC17: （ | AH17: ） | AI17: 年月日 | AR17: 公表
AF18: 年 | AH18: 月 | AJ18: 日 | AR18: 公表予定
H19: 経営体育成支援事業実施要綱別記１の第１の３の（１）のアの（イ）について実施する予定である。
H20: □ | J20: 今後も継続して人・農地プランの内容の向上に向けた話合い等を行うこととしている。
J21: （今後の地域内の話合い等及び公表の予定について記載）
B25: 地区名 | H25: 経営体育成支援事業実施要綱別記１の第１の３の（１）のアの（ア）について実施されている。
H26: 地域内の話合い等の状況及び公表の状況等について
H27: □ | J27: 地域内の関係者で話合い等がなされている。 | AC27: 話合い等がなされた年月日
AF28: 年 | AH28: 月 | AJ28: 日
H29: □ | J29: 話合い等の中で、今後の地域農業のあり方（農地集積・規模拡大、複合化、高付加価値化等）や農地中間管理機構の位置づけについて検討、人・農地プランに反映されている。
H31: □ | J31: 人・農地プランが作成又は見直しされている。 | AC31: （ | AH31: ） | AI31: された年月日 | AR31: 作成
AF32: 年 | AH32: 月 | AJ32: 日 | AR32: 見直し
B33: ○○地区 | H33: □ | J33: 人・農地プランを公表又は公表を予定している。 | AC33: （ | AH33: ） | AI33: 年月日 | AR33: 公表
AF34: 年 | AH34: 月 | AJ34: 日 | AR34: 公表予定
H35: 経営体育成支援事業実施要綱別記１の第１の３の（１）のアの（イ）について実施する予定である。
H36: □ | J36: 今後も継続して人・農地プランの内容の向上に向けた話合い等を行うこととしている。
J37: （今後の地域内の話合い等及び公表の予定について記載）
B41: 地区名 | H41: 経営体育成支援事業実施要綱別記１の第１の３の（１）のアの（ア）について実施されている。
H42: 地域内の話合い等の状況及び公表の状況等について
H43: □ | J43: 地域内の関係者で話合い等がなされている。 | AC43: 話合い等がなされた年月日
AF44: 年 | AH44: 月 | AJ44: 日
H45: □ | J45: 話合い等の中で、今後の地域農業のあり方（農地集積・規模拡大、複合化、高付加価値化等）や農地中間管理機構の位置づけについて検討、人・農地プランに反映されている。
H47: □ | J47: 人・農地プランが作成又は見直しされている。 | AC47: （ | AH47: ） | AI47: された年月日 | AR47: 作成
AF48: 年 | AH48: 月 | AJ48: 日 | AR48: 見直し
B49: ○○地区 | H49: □ | J49: 人・農地プランを公表又は公表を予定している。 | AC49: （ | AH49: ） | AI49: 年月日 | AR49: 公表
AF50: 年 | AH50: 月 | AJ50: 日 | AR50: 公表予定
H51: 経営体育成支援事業実施要綱別記１の第１の３の（１）のアの（イ）について実施する予定である。
H52: □ | J52: 今後も継続して人・農地プランの内容の向上に向けた話合い等を行うこととしている。
J53: （今後の地域内の話合い等及び公表の予定について記載）
B57: （注）１．適切な人・農地プランが作成されているか確認するため、該当する場合に□にチェックを入れること。
B58: チェックがない場合には、適切な人・農地プランが作成されていないため本事業の対象外となりますのでご注意く ださい。
C60: ２．「人・農地プランが作成又は見直しされている」欄の右の括弧には「作成」又は「見直し」と記載し、「人・農地プランを 公表又は公表を予定している」欄の右の括弧には「公表」又は「公表予定」と記載すること。
B61: ２ 人・農地プランの作成等がされていないが農地中間管理機構から賃借権等の設定等を 受けた者が営農範囲とする地区における事業
B63: 地区名 | H63: 該当の有無
H65: □
B68: （注）人・農地プランの作成時期等が明らかな場合にチェックを入れること。
B69: 複数地区で実施する場合には、欄を追加して記載すること。
B70: 人・農地プランの 作成時期 | H70: 作成スケジュール

Sheet 別紙様式１－１号別添１ (hidden)
B1: 別紙様式第１－１号別添１
B3: 予算の配分基準ポイント
B5: （１）配分基準 | AS5: （単位：経営体）
B6: 配分基準項目 | AF6: 助成対象者数 Ａ | AL6: 点数 Ｂ | AP6: ポイント C=Ａ×Ｂ
B9: ① | C9: 付加価値額の拡大 | J9: ア 現状ポイント
J10: 直近年の付加価値額が（ア）又は（イ）のいずれかとなっている。 ただし、④の新規就農ポイントの加点を受ける者は除く。
J11: （ア）直近年度の付加価値額
K12: ａ 基準額（600万円）以上 | AL12: １経営体 につき１点 | AP12: =IF(AF12="","",AF12*1) -> 
K13: ｂ 基準額の50％増し（900万円）以上 | AL13: １経営体 につき２点 | AP13: =IF(AF13="","",AF13*2) -> 
K14: ｃ 基準額の100％増し（1,200万円）以上 | AL14: １経営体 につき３点 | AP14: =IF(AF14="","",AF14*3) -> 
K15: ｄ 基準額の200％増し（1,800万円）以上 | AL15: １経営体 につき４点 | AP15: =IF(AF15="","",AF15*4) -> 
J16: （イ）直近年度の就業者１人当たり付加価値額
K17: ａ 基準額（250万円）以上 | AL17: １経営体 につき１点 | AP17: =IF(AF17="","",AF17*1) -> 
K18: ｂ 基準額の25％増し（313万円）以上 | AL18: １経営体 につき２点 | AP18: =IF(AF18="","",AF18*2) -> 
K19: ｃ 基準額の50％増し（375万円）以上 | AL19: １経営体 につき３点 | AP19: =IF(AF19="","",AF19*3) -> 
K20: ｄ 基準額の100％増し（500万円）以上 | AL20: １経営体 につき４点 | AP20: =IF(AF20="","",AF20*4) -> 
J21: （注）臨時雇用は延べ240人・日を１人として算定。 （小数点第１位まで求める（小数点第２位以下は四捨五入。））
J24: イ 目標ポイント
J25: ④の新規就農ポイントの加点を受ける者にあっては（イ）、 その他の者は（ア）の取組に該当している。
J26: （ア）目標年度までの付加価値額又は就業者１人当たりの付加価値額の拡大率
K27: ａ ３％以上 | AL27: １経営体 につき１点 | AP27: =IF(AF27="","",AF27*1) -> 
K28: ｂ ５％以上 | AL28: １経営体 につき２点 | AP28: =IF(AF28="","",AF28*2) -> 
K29: ｃ ７％以上 | AL29: １経営体 につき３点 | AP29: =IF(AF29="","",AF29*3) -> 
K30: ｄ ９％以上 | AL30: １経営体 につき４点 | AP30: =IF(AF30="","",AF30*4) -> 
K31: ｅ 12％以上 | AL31: １経営体 につき５点 | AP31: =IF(AF31="","",AF31*5) -> 
K32: ｆ 15％以上 | AL32: １経営体 につき６点 | AP32: =IF(AF32="","",AF32*6) -> 
J33: （イ）目標年度の付加価値額
K35: ａ 基準額（目標年度における就農後経過年数×50万円）以上 | AL35: １経営体 につき２点 | AP35: =IF(AF35="","",AF35*2) -> 
K36: ｂ 基準額の10％増し以上 | AL36: １経営体 につき３点 | AP36: =IF(AF36="","",AF36*3) -> 
K37: ｃ 基準額の20％増し以上 | AL37: １経営体 につき４点 | AP37: =IF(AF37="","",AF37*4) -> 
K38: ｄ 基準額の30％増し以上 | AL38: １経営体 につき５点 | AP38: =IF(AF38="","",AF38*5) -> 
K39: ｅ 基準額の40％増し以上 | AL39: １経営体 につき６点 | AP39: =IF(AF39="","",AF39*6) -> 
B40: ② | C40: 経営面積の拡大 | J40: 事業実施前３年度内に経営面積の拡大に取り組み、３年度前より経営面積が拡大しており、アからオまでのいずれかの取組に該当している。
K43: ア 農地中間管理機構から賃借権等の設定等を受けており、かつ、目標年度 に現状より４ha（営農類型が施設園芸作の場合は２ha、果樹作の場合は １ha）以上の経営面積の拡大を行うこととしている。 | AL43: １経営体 につき５点 | AP43: =IF(AF43="","",AF43*5) -> 
K44: イ 農地中間管理機構から賃借権等の設定等を受けており、かつ、目標年度 に現状より２ha（営農類型が施設園芸作の場合は１ha、果樹作の場合は 0.5ha）以上の経営面積の拡大を行うこととしている。 | AL44: １経営体 につき４点 | AP44: =IF(AF44="","",AF44*4) -> 
K45: ウ 農地中間管理機構から賃借権等の設定等を受けており、かつ、目標年度 に現状より経営面積の拡大を行うこととしている、又は目標年度に現状より ４ha（営農類型が施設園芸作の場合は２ha、果樹作の場合は１ha）以上の経 営面積の拡大を行うこととしている。 | AL45: １経営体 につき３点 | AP45: =IF(AF45="","",AF45*3) -> 
K46: エ 農地中間管理機構から賃借権等の設定等を受けている、又は目標年度 に現状より２ha（営農類型が施設園芸作の場合は１ha、果樹作の場合は 0.5ha）以上の経営面積の拡大を行うこととしている。 | AL46: １経営体 につき２点 | AP46: =IF(AF46="","",AF46*2) -> 
K47: オ 上記アからエまでに該当しない経営体で、目標年度に現状より経営面積 の拡大を行うこととしている。 | AL47: １経営体 につき１点 | AP47: =IF(AF47="","",AF47*1) -> 
B48: ③ | C48: 経営管理の高度化 | J48: 以下に該当する場合はそれぞれ加点する。
K49: ア 現在、法人化している又は目標年度までに法人化することとしている。 | AL49: １経営体 につき２点 | AP49: =IF(AF49="","",AF49*2) -> 
K50: イ 国際水準GAPの認証を取得している。 | AL50: １経営体 につき１点 | AP50: =IF(AF50="","",AF50*1) -> 
B51: ④ | C51: 新規就農 | J51: 事業実施年度に就農する者又は就農後５年度以内の者である。 ただし、認定就農者である場合に限る。 | AL51: １経営体 につき２点 | AP51: =IF(AF51="","",AF51*2) -> 
J52: 以下に該当する場合はそれぞれ加点する。
K53: ａ 45歳までに就農した者である場合（法人にあっては、役員の過半が45歳以 下である場合に限る。） | AL53: １経営体 につき２点 | AP53: =IF(AF53="","",AF53*2) -> 
K54: ｂ 農業次世代人材投資事業（経営開始型）の交付を受けていない場合 | AL54: １経営体 につき１点 | AP54: =IF(AF54="","",AF54*1) -> 
B55: ⑤ | C55: 農業者の育成 | J55: 農業研修生（国内で農業を生業とする予定の者に限り、外国人技能実習制度に基づく者を除く。）を受け入れている。 | AL55: １経営体 につき１点 | AP55: =IF(AF55="","",AF55*1) -> 
J56: 以下に該当する場合はそれぞれ加点する。
K57: a 就農に向けて必要な技術等を習得できる経営体として都道府県が認めた 者である場合 | AL57: １経営体 につき１点 | AP57: =IF(AF57="","",AF57*1) -> 
K58: ｂ ａの加点対象者が受け入れた農業研修生が、過去５年以内に研修を終了 して独立し、認定就農者又は認定農業者となった場合 | AL58: １経営体 につき１点 | AP58: =IF(AF58="","",AF58*1) -> 
B59: ⑥ | C59: 女性の取組 | J59: 以下のいずれかの取り組みである。 ア 女性農業者（自らが農業経営を行っている又は部門間で区分経理を行って いる場合に当該部門の責任者である者） イ 代表者が女性であるか、役員若しくは構成員のうち女性が過半を占める法 人又は任意組織 ウ 法人又は任意組織であって、部門間で区分経理を行っている場合に女性 が当該部門の責任者であるもの | AL59: １経営体 につき３点 | AP59: =IF(AF59="","",AF59*3) -> 
AL64: ポイント計 D | AP64: =IF(SUM(AP12:AS62)=0,"",SUM(AP12:AS62)) -> 
M67: 事業に取り組む助成対象者数 Ｅ | AF67: 地区平均ポイント F=D/E | AO67: =IF(AP64=""," ",AP64/Z67) -> 
B70: 【記載要領】
B71: ・事業に取り組む助成対象者の経営状況について作成すること。
B74: （２）地区配分基準
B75: 配分基準項目 | H75: 現在の水準 | AI75: 点数 | AN75: 加算するポイント
B78: ① | C78: 担い手への農地集積 | H78: 事業実施要望地区内における中心経営体等の地域の担い手に対する現状の農地集積率が80％以上である。 | R78: 事業実施要望調査を始める前月末現在における担い手に対する農地集積率（単位：％小数点以下切り捨て）
R82: 地区内全農地面積 | AE82: ha | AF82: =IF(AA82="","",AA84/AA82) ->  | AI82: 1 | AN82: =IF(AF82="","",IF(AF82>=0.8,1,0)) -> 
R84: 担い手に集積された農地面積 | AE84: ha
B86: ② | C86: 農地集積割合の増加 | H86: 事業実施前３年度内に事業実施要望地区内の中心経営体等の地域の担い手への農地集積の取り組みを進め、３年度前より地区の中心経営体等への農地集積率が１割以上増加している。 | R86: 事業実施３年度前の４月１日現在と事業実施要望調査を始める前月末現在の地区の中心経営体等への農地集積率の差（単位：％小数点以下切り捨て）
R90: ３年度前の４月１日現在
S92: 地区内全農地面積 | AE92: ha | AF92: =IF(AA92="","",AA94/AA92) -> 
S94: 担い手に集積された農地面積 | AE94: ha
R96: 要望調査の前月末現在 | AI96: 1 | AN96: =IF(AF98="","",IF(AF98-AF92>=0.1,1,0)) -> 
S98: 地区内全農地面積 | AE98: ha | AF98: =IF(AA98="","",AA100/AA98) -> 
R100: ａ | S100: 担い手に集積された農地面積 | AE100: ha
R102: 左記のうち、事業実施前年度から増加した農地集積面積のうち３割以上が農地中間管理機構を活用している場合
R105: 事業実施前年度の４月１日現在 | AI105: 1 | AN105: =IF(OR(AF113="",AN96=0,AN96="",AF113>1),"",IF(AA113/AA111>=0.3,1,0)) -> 
R107: ｂ | S107: 担い手に集積された農地面積 | AE107: ha
R109: 事業実施前年度から増加した農地集積面積
R111: ａ-ｂ | S111: 担い手に集積された農地面積 | AA111: =IF(AA107="","",AA100-AA107) ->  | AE111: ha
T113: うち機構分 | AE113: ha | AF113: =IF(OR(AA113="",AA113=""),"",AA113/AA111) -> 
AI117: 計 | AN117: =IF(SUM(AN78:AQ114)=0,"",SUM(AN78:AQ114)) -> 
B119: 【記載要領】
B120: 事業に取り組む助成対象者以外も含めて、事業実施地区内の状況について記載すること。
B125: （３）都道府県配分基準 | AW125: 都道府県名
B126: 配分基準項目 | F126: 現 在 の 水 準 | Y126: 点 数 | AN126: 加算するポイント | AW126: 平成29年度（追加要望） 経営体育成支援事業の都道府県配分基準に基づく加点
AW127: 都道府県 | AY127: ①農地中間管理機構による農地の集積状況 | BC127: ②農地中間管理機構による農地の集約化状況 | BG127: 計 | BH127: 備考
AY128: 都道府県の年間集積目標に対する農地中間管理機構の転貸面積のうち新規集積面積の比率の全国順位 | BC128: 都道府県の全耕地面積に対する農地中間管理機構の借入面積の比率の全国順位
B129: ① | C129: 農地中間管理機構による農地の集積状況 | F129: 直近年度における事業実施要望地区が存する都道府県の年間集積目標面積に対する農地中間管理機構の転貸面積のうち新規集積面積の比率の全国順位 | U129: =IF($AX$125="","",VLOOKUP($AX$125,$AX$131:BF177,2,FALSE)) ->  | W129: 位 | Y129: 上位5位までの都道府県：1.5×1/2点 6位から10位までの都道府県：1.5×1/2×0.75 点 11位から20位までの都道府県：1.5×1/2×0.50 点 21位から30位までの都道府県：1.5×1/2×0.25 点 ただし、中心経営体等の地域の担い手に対する現状の農地集積率が80％以上の都道府県については、0.75点 | AN129: =IF($AX$125="","",VLOOKUP($AX$125,$AX$131:BY177,5,FALSE)) ->  | AP129: =IF($AX$125="","",VLOOKUP($AX$125,$AX$131:CA177,2,FALSE)) ->  | AY129: ア 直近年度 （平成28年度実績） | BA129: イ 過年度 （平成26-28年度実績） | BC129: ア 直近年度 （平成28年度実績） | BE129: イ 過年度 （平成26-28年度実績）
AY130: 順位 | AZ130: 加点 | BA130: 順位 | BB130: 加点 | BC130: 順位 | BD130: 加点 | BE130: 順位 | BF130: 加点
AW131: 1 | AX131: 北海道 | AY131: 36 | AZ131: 0.7500 | BA131: 36 | BB131: 0.7500 | BC131: 44 | BD131: =IF(BC131<=5,0.5,IF(BC131<=10,0.375,IF(BC131<=20,0.25,IF(BC131<=30,0.125,0)))) -> 0.0000 | BE131: 36 | BF131: =IF(BE131<=5,0.5,IF(BE131<=10,0.375,IF(BE131<=20,0.25,IF(BE131<=30,0.125,0)))) -> 0.0000 | BG131: =+AZ131+BD131+BB131+BF131 -> 1.5000
AW132: 2 | AX132: 青森県 | AY132: 20 | AZ132: =IF(AY132<=5,0.75,IF(AY132<=10,0.5625,IF(AY132<=20,0.375,IF(AY132<=30,0.1875,0)))) -> 0.3750 | BA132: 24 | BB132: =IF(BA132<=5,0.75,IF(BA132<=10,0.5625,IF(BA132<=20,0.375,IF(BA132<=30,0.1875,0)))) -> 0.1875 | BC132: 23 | BD132: 0.1250 | BE132: 26 | BF132: 0.1250 | BG132: 0.8125
F133: 過年度における事業実施要望地区が存する都道府県の年間集積目標面積に対する農地中間管理機構の転貸面積のうち新規集積面積の比率の全国順位 | U133: =IF($AX$125="","",VLOOKUP($AX$125,$AX$131:BF181,4,FALSE)) ->  | W133: 位 | AN133: =IF($AX$125="","",VLOOKUP($AX$125,$AX$131:BY181,3,FALSE)) ->  | AP133: =IF($AX$125="","",VLOOKUP($AX$125,$AX$131:CA181,2,FALSE)) ->  | AW133: 3 | AX133: 岩手県 | AY133: 7 | AZ133: 0.5625 | BA133: 4 | BB133: 0.7500 | BC133: 8 | BD133: 0.3750 | BE133: 6 | BF133: 0.3750 | BG133: 2.0625
AW134: 4 | AX134: 宮城県 | AY134: 5 | AZ134: 0.7500 | BA134: 7 | BB134: 0.5625 | BC134: 13 | BD134: 0.2500 | BE134: 16 | BF134: 0.2500 | BG134: 1.8125
AW135: 5 | AX135: 秋田県 | AY135: 2 | AZ135: 0.7500 | BA135: 2 | BB135: 0.7500 | BC135: 10 | BD135: 0.3750 | BE135: 13 | BF135: 0.2500 | BG135: 2.1250
AW136: 6 | AX136: 山形県 | AY136: 9 | AZ136: 0.5625 | BA136: 7 | BB136: 0.5625 | BC136: 5 | BD136: 0.5000 | BE136: 3 | BF136: 0.5000 | BG136: 2.1250
B137: ② | C137: 農地中間管理機構による農地の集約化状況 | F137: 直近年度における事業実施要望地区が存する都道府県の全耕地面積に対する地中間管理機構の借入面積の比率の全国順位 | U137: =IF($AX$125="","",VLOOKUP($AX$125,$AX$131:BF185,6,FALSE)) ->  | W137: 位 | Y137: 上位5位までの都道府県：1.0×1/2点 6位から10位までの都道府県：1.0×1/2×0.75 点 11位から20位までの都道府県：1.0×1/2×0.50 点 21位から30位までの都道府県：1.0×1/2×0.25 点 | AN137: =IF($AX$125="","",VLOOKUP($AX$125,$AX$131:BY185,7,FALSE)) ->  | AP137: =IF($AX$125="","",VLOOKUP($AX$125,$AX$131:CA185,2,FALSE)) ->  | AW137: 7 | AX137: 福島県 | AY137: 18 | AZ137: 0.3750 | BA137: 17 | BB137: 0.3750 | BC137: 25 | BD137: 0.1250 | BE137: 25 | BF137: 0.1250 | BG137: 1.0000
AW138: 8 | AX138: 茨城県 | AY138: 16 | AZ138: 0.3750 | BA138: 15 | BB138: 0.3750 | BC138: 20 | BD138: 0.2500 | BE138: 21 | BF138: 0.1250 | BG138: 1.1250
AW139: 9 | AX139: 栃木県 | AY139: 21 | AZ139: 0.1875 | BA139: 20 | BB139: 0.3750 | BC139: 25 | BD139: 0.1250 | BE139: 30 | BF139: 0.1250 | BG139: 0.8125
AW140: 10 | AX140: 群馬県 | AY140: 33 | AZ140: 0.0000 | BA140: 36 | BB140: 0.0000 | BC140: 27 | BD140: 0.1250 | BE140: 34 | BF140: 0.0000 | BG140: 0.1250
F141: 過年度における事業実施要望地区が存する都道府県の全耕地面積に対する農地中間管理機構の借入面積の比率の全国順位 | U141: =IF($AX$125="","",VLOOKUP($AX$125,$AX$131:BF189,8,FALSE)) ->  | W141: 位 | AN141: =IF($AX$125="","",VLOOKUP($AX$125,$AX$131:BY189,9,FALSE)) ->  | AP141: =IF($AX$125="","",VLOOKUP($AX$125,$AX$131:CA189,2,FALSE)) ->  | AW141: 11 | AX141: 埼玉県 | AY141: 13 | AZ141: 0.3750 | BA141: 28 | BB141: 0.1875 | BC141: 20 | BD141: 0.2500 | BE141: 27 | BF141: 0.1250 | BG141: 0.9375
AW142: 12 | AX142: 千葉県 | AY142: 21 | AZ142: 0.1875 | BA142: 30 | BB142: 0.1875 | BC142: 29 | BD142: 0.1250 | BE142: 39 | BF142: 0.0000 | BG142: 0.5000
AW143: 13 | AX143: 東京都 | AY143: 45 | AZ143: 0.0000 | BA143: 45 | BB143: 0.0000 | BC143: 44 | BD143: 0.0000 | BE143: 47 | BF143: 0.0000 | BG143: 0.0000
AW144: 14 | AX144: 神奈川県 | AY144: 46 | AZ144: 0.0000 | BA144: 45 | BB144: 0.0000 | BC144: 44 | BD144: 0.0000 | BE144: 46 | BF144: 0.0000 | BG144: 0.0000
AW145: 15 | AX145: 山梨県 | AY145: 24 | AZ145: 0.1875 | BA145: 17 | BB145: 0.3750 | BC145: 29 | BD145: 0.1250 | BE145: 32 | BF145: 0.0000 | BG145: 0.6875
AI146: 計 | AN146: =IF(SUM(AN129,AN133,AN137,AN141)=0,"",SUM(AN129,AN133,AN137,AN141)) ->  | AW146: 16 | AX146: 長野県 | AY146: 24 | AZ146: 0.1875 | BA146: 34 | BB146: 0.0000 | BC146: 37 | BD146: 0.0000 | BE146: 30 | BF146: 0.1250 | BG146: 0.3125
AW147: 17 | AX147: 静岡県 | AY147: 35 | AZ147: 0.0000 | BA147: 36 | BB147: 0.0000 | BC147: 27 | BD147: 0.1250 | BE147: 34 | BF147: 0.0000 | BG147: 0.1250
AW148: 18 | AX148: 新潟県 | AY148: 8 | AZ148: 0.5625 | BA148: 6 | BB148: 0.5625 | BC148: 6 | BD148: 0.3750 | BE148: 10 | BF148: 0.3750 | BG148: 1.8750
B149: 【記載要領】 | AW149: 19 | AX149: 富山県 | AY149: 6 | AZ149: 0.5625 | BA149: 7 | BB149: 0.5625 | BC149: 13 | BD149: 0.2500 | BE149: 5 | BF149: 0.5000 | BG149: 1.8750
B150: 農林水産省公表の農地中間管理機構の実績等に関する資料等に基づき記載すること。 | AW150: 20 | AX150: 石川県 | AY150: 4 | AZ150: 0.7500 | BA150: 3 | BB150: 0.7500 | BC150: 8 | BD150: 0.3750 | BE150: 8 | BF150: 0.3750 | BG150: 2.2500
AW151: 21 | AX151: 福井県 | AY151: 1 | AZ151: 0.7500 | BA151: 1 | BB151: 0.7500 | BC151: 1 | BD151: 0.5000 | BE151: 1 | BF151: 0.5000 | BG151: 2.5000
AW152: 22 | AX152: 岐阜県 | AY152: 14 | AZ152: 0.3750 | BA152: 15 | BB152: 0.3750 | BC152: 2 | BD152: 0.5000 | BE152: 3 | BF152: 0.5000 | BG152: 1.7500
AW153: 23 | AX153: 愛知県 | AY153: 42 | AZ153: 0.0000 | BA153: 36 | BB153: 0.0000 | BC153: 29 | BD153: 0.1250 | BE153: 36 | BF153: 0.0000 | BG153: 0.1250
G154: （１）で算出した平均ポイント | AE154: =AO67 ->  | AW154: 24 | AX154: 三重県 | AY154: 36 | AZ154: 0.0000 | BA154: 24 | BB154: 0.1875 | BC154: 29 | BD154: 0.1250 | BE154: 27 | BF154: 0.1250 | BG154: 0.4375
AW155: 25 | AX155: 滋賀県 | AY155: 12 | AZ155: 0.3750 | BA155: 12 | BB155: 0.3750 | BC155: 2 | BD155: 0.5000 | BE155: 2 | BF155: 0.5000 | BG155: 1.7500
AW156: 26 | AX156: 京都府 | AY156: 30 | AZ156: 0.1875 | BA156: 24 | BB156: 0.1875 | BC156: 23 | BD156: 0.1250 | BE156: 18 | BF156: 0.2500 | BG156: 0.7500
G157: （２）で算出したポイント | AE157: =AN117 ->  | AW157: 27 | AX157: 大阪府 | AY157: 30 | AZ157: 0.1875 | BA157: 30 | BB157: 0.1875 | BC157: 43 | BD157: 0.0000 | BE157: 43 | BF157: 0.0000 | BG157: 0.3750
AW158: 28 | AX158: 兵庫県 | AY158: 36 | AZ158: 0.0000 | BA158: 20 | BB158: 0.3750 | BC158: 33 | BD158: 0.0000 | BE158: 18 | BF158: 0.2500 | BG158: 0.6250
AW159: 29 | AX159: 奈良県 | AY159: 33 | AZ159: 0.0000 | BA159: 30 | BB159: 0.1875 | BC159: 37 | BD159: 0.0000 | BE159: 36 | BF159: 0.0000 | BG159: 0.1875
G160: （３）で算出したポイント | AE160: =+AN146 ->  | AW160: 30 | AX160: 和歌山県 | AY160: 42 | AZ160: 0.0000 | BA160: 42 | BB160: 0.0000 | BC160: 41 | BD160: 0.0000 | BE160: 43 | BF160: 0.0000 | BG160: 0.0000
AW161: 31 | AX161: 鳥取県 | AY161: 3 | AZ161: 0.7500 | BA161: 4 | BB161: 0.7500 | BC161: 6 | BD161: 0.3750 | BE161: 11 | BF161: 0.2500 | BG161: 2.1250
AW162: 32 | AX162: 島根県 | AY162: 11 | AZ162: 0.3750 | BA162: 11 | BB162: 0.3750 | BC162: 11 | BD162: 0.2500 | BE162: 11 | BF162: 0.2500 | BG162: 1.2500
G163: 当該地区の合計配分基準ポイント | AE163: =IF(SUM(AE154,AE157,AE160)=0,"",SUM(AE154,AE157,AE160)) ->  | AW163: 33 | AX163: 岡山県 | AY163: 16 | AZ163: 0.3750 | BA163: 17 | BB163: 0.3750 | BC163: 33 | BD163: 0.0000 | BE163: 33 | BF163: 0.0000 | BG163: 0.7500
AW164: 34 | AX164: 広島県 | AY164: 14 | AZ164: 0.3750 | BA164: 10 | BB164: 0.5625 | BC164: 11 | BD164: 0.2500 | BE164: 15 | BF164: 0.2500 | BG164: 1.4375
AW165: 35 | AX165: 山口県 | AY165: 18 | AZ165: 0.3750 | BA165: 12 | BB165: 0.3750 | BC165: 2 | BD165: 0.5000 | BE165: 7 | BF165: 0.3750 | BG165: 1.6250
AW166: 36 | AX166: 徳島県 | AY166: 30 | AZ166: 0.1875 | BA166: 30 | BB166: 0.1875 | BC166: 37 | BD166: 0.0000 | BE166: 41 | BF166: 0.0000 | BG166: 0.3750
AW167: 37 | AX167: 香川県 | AY167: 10 | AZ167: 0.5625 | BA167: 14 | BB167: 0.3750 | BC167: 19 | BD167: 0.2500 | BE167: 24 | BF167: 0.1250 | BG167: 1.3125
AW168: 38 | AX168: 愛媛県 | AY168: 46 | AZ168: 0.0000 | BA168: 45 | BB168: 0.0000 | BC168: 44 | BD168: 0.0000 | BE168: 43 | BF168: 0.0000 | BG168: 0.0000
AW169: 39 | AX169: 高知県 | AY169: 36 | AZ169: 0.0000 | BA169: 36 | BB169: 0.0000 | BC169: 33 | BD169: 0.0000 | BE169: 39 | BF169: 0.0000 | BG169: 0.0000
AW170: 40 | AX170: 福岡県 | AY170: 27 | AZ170: 0.1875 | BA170: 20 | BB170: 0.3750 | BC170: 18 | BD170: 0.2500 | BE170: 17 | BF170: 0.2500 | BG170: 1.0625
AW171: 41 | AX171: 佐賀県 | AY171: 42 | AZ171: 0.0000 | BA171: 42 | BB171: 0.0000 | BC171: 37 | BD171: 0.0000 | BE171: 23 | BF171: 0.1250 | BG171: 0.1250
AW172: 42 | AX172: 長崎県 | AY172: 27 | AZ172: 0.1875 | BA172: 24 | BB172: 0.1875 | BC172: 13 | BD172: 0.2500 | BE172: 9 | BF172: 0.3750 | BG172: 1.0000
AW173: 43 | AX173: 熊本県 | AY173: 36 | AZ173: 0.0000 | BA173: 34 | BB173: 0.0000 | BC173: 33 | BD173: 0.0000 | BE173: 27 | BF173: 0.1250 | BG173: 0.1250
AW174: 44 | AX174: 大分県 | AY174: 24 | AZ174: 0.1875 | BA174: 28 | BB174: 0.1875 | BC174: 20 | BD174: 0.2500 | BE174: 22 | BF174: 0.1250 | BG174: 0.7500
AW175: 45 | AX175: 宮崎県 | AY175: 27 | AZ175: 0.1875 | BA175: 41 | BB175: 0.0000 | BC175: 13 | BD175: 0.2500 | BE175: 14 | BF175: 0.2500 | BG175: 0.6875
AW176: 46 | AX176: 鹿児島県 | AY176: 21 | AZ176: 0.1875 | BA176: 20 | BB176: 0.3750 | BC176: 13 | BD176: 0.2500 | BE176: 18 | BF176: 0.2500 | BG176: 1.0625
AW177: 47 | AX177: 沖縄県 | AY177: 36 | AZ177: 0.0000 | BA177: 42 | BB177: 0.0000 | BC177: 41 | BD177: 0.0000 | BE177: 41 | BF177: 0.0000 | BG177: 0.0000

Sheet 費用対効果 (2) (hidden)
B1: 別紙様式第19号（別記８－１の第６関係）
B2: 食料産業・６次産業化交付金の加工・直売施設整備事業に関する
B3: 費用対効果分析(投資効率)
B5: １ 食品等製造の向上に係る効果 | L5: 事業実施主体名：
B6: (１) 効果の内容
B7: (ア) 輸出額向上効果
B8: 施設区分 | D8: 効果要因 | F8: 取扱品目名 | I8: 取扱数量 | K8: 効果発生量 (ｔ) ③=②-① | M8: 品目単価 (千円/ｔ) ④ | O8: 年効果額(千円)
I9: 現況 (ｔ) ① | J9: 整備後(ｔ) ② | O9: 純益率 (%) ⑤ | P9: ⑥=③×④×⑤
B12: 計
B13: データの根拠
B14: ①
B15: ②
B16: ④
B17: ⑤
B19: (イ) 施設維持管理コスト削減効果
B20: 施設区分 | D20: 効果要因 | F20: 取扱品目名 | I20: 規格外等による廃棄量 | M20: 品目単価 (千円/ｔ) ④ | O20: 年効果額(千円)
I21: 現況 (ｔ) ① | J21: 整備後(ｔ) ② | K21: 減少量(ｔ) ③=①-② | O21: 純益率 (%) ⑤ | P21: ⑥=③×④×⑤×0.01
B24: 計
B25: データの根拠
B26: ①
B27: ②
B28: ④
B29: ⑤
B31: (ウ) 施設維持管理コスト削減効果
B32: 施設区分 | F32: 効果要因 | I32: 現況の施設維持管理に係る年経費 (千円)① | L32: 整備後の施設維持管理に係る年経費(千円)② | O32: 年効果額(千円) ③=①-②
B35: 計
B36: データの根拠
B37: ①
B38: ②
B41: ３ 雇用創出に係る効果
B42: 施設名 | F42: 雇用人員 (人) | I42: 計画賃金(千円/年) ① | L42: 当該施設での雇用により失われる収入(千円/年) ② | O42: 年効果額(千円) ③=①-②
B45: 計
B46: データの根拠
B47: ①
B48: ②
B50: ４ 投資効率等の総括
B51: (1) 年総効果額の総括 | Q51: (単位：千円)
B52: 効果区分 | F52: 効果内容 | N52: 年総効果額
B53: 農林水産物等の生産向上に係る効果
B55: 食品製造の向上に係る効果
B57: 雇用創出に係る効果
B58: 計
B60: (2) 総合耐用年数の算出 | Q60: (単位：千円)
B61: 機械・施設名 | H61: 耐用年数 ① | J61: 工事費等 ② | N61: 年工事費(減価額) ③=②÷①
B64: 計 | J64: ④ | N64: ⑤
B65: 総合耐用年数=④÷⑤ | Q65: 年
B66: データの根拠
B67: ①
B69: (3) 廃用損失額
B70: 事業実施に伴い、財産処分又は本事業の目的以外に転用される既存の施設等がある場合については、当該施設等の残存価格を廃用損失額とします。
Q71: (単位：千円)
B72: 名称 | N72: 廃用損失額
B75: 計
B76: データの根拠
B77: ①
B79: (4) 経済効果総括表
B80: 区分 | F80: 算式 | I80: 数値 | N80: 備考
B81: 総事業費 | F81: ① | L81: 千円
B82: 年総効果額 | F82: ② | L82: 千円
B83: 総合耐用年数 | F83: ③ | L83: 年
B84: 還元率 | F84: ④
B85: 妥当投資額 | F85: ⑤=②÷④ | L85: 千円
B86: 廃用損失額 | F86: ⑥ | L86: 千円
B87: 投資効率 | F87: ⑦=(⑤-⑥)÷①
B88: 注1 | C88: 還元率=｛ｉ×(１＋ｉ)ｎ｝÷｛(１＋ｉ)ｎ-１｝、ｉ=０．０４(割引率)、ｎ=総合耐用年数
B89: 2 | C89: 投資効率は小数点以下２桁まで求めるものとします。
